Workbook

Sheet Summary
B1: Name Plate Rating | C1: Florida Current | D1: % Difference | E1: Rotor Diameter | F1: Control Method | G1: Input Pump | J1: Florida Target
B2: kW | C2: ¢/kWh | D2: % | E2: m | F2: - | G2: #
B3: 2400 | C3: ='2.4 2400 FC Quick COE'!$R$10 -> 10.40327679 | E3: 45.5 | G3: 2X CBM 6000
B4: 1050 | C4: 12.6 | D4: =(C4-$C$3)/$C$3 -> 0.2111568551 | E4: 27.84198761 | F4: Stall 2.0 | G4: CBM 6000
B5: 1600 | C5: ='2.4 1600 FC Quick COE'!$R$10 -> 12.32162862 | D5: =(C5-$C$3)/$C$3 -> 0.1843988072 | E5: 35.07870629 | F5: Stall | G5: 2X CBM 6000
B6: 1500 | C6: ='2.4 750 FC Quick COE'!$R$10 -> 10.67240494 | D6: =(C6-$C$3)/$C$3 -> 0.02586955582 | E6: 34.9 | F6: Ideal PDC 1.6 | G6: CBM 6000 | I6: 2400 | J6: 8
B7: 1500 | C7: ='2.4 500 FC Quick COE'!$R$10 -> 14.870009 | D7: =(C7-$C$3)/$C$3 -> 0.4293582013 | E7: 34.9 | F7: Current PDC 1.6 | G7: CBM 6000 | I7: 0 | J7: 8
B8: 2000 | C8: ='2.4 350 FC Quick COE'!$R$10 -> 13.38992413 | D8: =(C8-$C$3)/$C$3 -> 0.2870871742 | E8: 32.3 | F8: Current PDC 1.8 | G8: CBM 6000

Sheet Scaling Factors
B2: Factor | C2: Units | D2: Machine Configuration | J2: Cost Scale Factor
B3: MW Rating | C3: MW | D3: 2400 | E3: 1600 | F3: 1000 | G3: 1500 | H3: 1500 | I3: 2000 | J3: =D3/$D3 -> 1 | K3: =E3/$D3 -> 0.6666666667 | L3: =F3/$D3 -> 0.4166666667 | M3: 0.625 | N3: =H3/$D3 -> 0.625 | O3: =I3/$D3 -> 0.8333333333
B4: Rotor Diameter | C4: m | D4: 45.5 | E4: 35.07870629 | F4: 27.84198761 | G4: 34.9 | H4: 34.9 | I4: 32.3 | J4: 1 | K4: 0.7709605778 | L4: 0.6119118157 | M4: 0.767032967 | N4: 0.767032967 | O4: 0.7098901099
B5: Rotor Area | C5: m^2 | D5: =PI()*D4^2/4 -> 1625.970548 | E5: 966.4447197 | F5: 608.8220221 | G5: =PI()*G4^2/4 -> 956.622817 | H5: 956.622817 | I5: 819.3980499 | J5: 1 | K5: 0.5943802125 | L5: 0.3744360702 | M5: 0.5883395725 | N5: 0.5883395725 | O5: 0.5039439681
B6: Design Torque | C6: kNm | D6: 2509.191176 | E6: 1504.825368 | F6: 752.5643382 | G6: 1260 | H6: 1260 | I6: 1260 | J6: 1 | K6: 0.5997252747 | L6: 0.2999230769 | M6: 0.5021538462 | N6: 0.5021538462 | O6: 0.5021538462
B7: Shaft Design Torque | C7: kNm | D7: =2*D9*210/1000 -> 5040 | E7: 2520.000002 | F7: 1259.999998 | G7: =H7 -> 2520 | H7: =H6*2 -> 2520 | I7: =I6*2 -> 2520 | J7: 1 | K7: 0.5000000005 | L7: 0.2499999997 | M7: 0.5 | N7: 0.5 | O7: 0.5
B8: Rotor Bending | C8: kNm | D8: 5000 | E8: =$D$8*E5/$D$5 -> 2971.901063 | F8: =$D$8*F5/$D$5 -> 1872.180351 | G8: =$D$8*G5/$D$5 -> 2941.697863 | H8: =$D$8*H5/$D$5 -> 2941.697863 | I8: =$D$8*I5/$D$5 -> 2519.719841 | J8: =D8/$D8 -> 1 | K8: =E8/$D8 -> 0.5943802125 | L8: =F8/$D8 -> 0.3744360702 | M8: =G8/$D8 -> 0.5883395725 | N8: =H8/$D8 -> 0.5883395725 | O8: =I8/$D8 -> 0.5039439681
B9: VF Pump Rating | C9: Nm/bar | D9: 12000 | E9: 12000 | F9: 6000 | G9: 6000 | H9: 6000 | I9: 6000 | J9: 1 | K9: 1 | L9: 0.5 | M9: 0.5 | N9: 0.5 | O9: 0.5
B10: VF Pump Volume | C10: l/rev | D10: 760 | E10: 760 | F10: 380 | G10: 380 | H10: 380 | I10: 380 | J10: 1 | K10: 1 | L10: 0.5 | M10: 0.5 | N10: 0.5 | O10: 0.5
B11: Total Pump Weight | C11: kg | D11: =7500*2 -> 15000 | E11: 15000 | F11: 7500 | G11: 7500 | H11: 7500 | I11: 7500 | J11: 1 | K11: 1 | L11: 0.5 | M11: 0.5 | N11: 0.5 | O11: 0.5
B12: VF Pump Weight | C12: kg | D12: =7500*2 -> 15000 | E12: 15000 | F12: 7500 | G12: =G11 -> 7500 | H12: =H11 -> 7500 | I12: =I11 -> 7500 | J12: 1 | K12: 1 | L12: 0.5 | M12: 0.5 | N12: 0.5 | O12: 0.5
B13: Pressure | C13: bar | D13: 210 | E13: 210 | F13: 210 | G13: 210 | H13: 210 | I13: 210 | J13: 1 | K13: 1 | L13: 1 | M13: 1 | N13: 1 | O13: 1
B14: Gen Torque | C14: Nm | D14: 9744.180189 | E14: 6446.927961 | F14: 4061.310117 | G14: 6090.112618 | H14: 6090.112618 | I14: 8120.150158 | J14: 1 | K14: 0.661618303 | L14: 0.4167934129 | M14: 0.625 | N14: 0.625 | O14: 0.8333333333
B15: HS Var Pump Weight | C15: kg | D15: 1210 | E15: 640 | F15: 460 | G15: 640 | H15: 640 | I15: =H15*1.3 -> 832 | J15: 1 | K15: 0.5289256198 | L15: 0.3801652893 | M15: 0.5289256198 | N15: 0.5289256198 | O15: 0.6876033058
B16: HS Fixed Pump Weight | C16: kg | D16: 880 | E16: 440 | F16: 330 | G16: 440 | H16: 440 | I16: =H16*1.3 -> 572 | J16: 1 | K16: 0.5 | L16: 0.375 | M16: 0.5 | N16: 0.5 | O16: 0.65
B17: TRB Design Weight | C17: kg | D17: =54684 -> 54684 | E17: 31349.94353 | F17: 20363.94856 | G17: 33194 | H17: 33194 | I17: =H17 -> 33194 | J17: 1 | K17: 0.5732928011 | L17: 0.3723931782 | M17: 0.607014849 | N17: 0.607014849 | O17: 0.607014849
B18: TRB Diameter | C18: m | D18: 4.2 | E18: 4.2 | F18: 3.8 | G18: =F18 -> 3.8 | H18: =F18 -> 3.8 | I18: =F18 -> 3.8 | J18: 1 | K18: 1 | L18: 0.9047619048 | M18: 0.9047619048 | N18: 0.9047619048 | O18: 0.9047619048
B19: Blade Weight | C19: kg | D19: 15472 | E19: =0.0069*(E3/2)^2+4.7374*(E3/2)-138.94 -> 8066.98 | F19: =0.0069*(F3/2)^2+4.7374*(F3/2)-138.94 -> 3954.76 | G19: =0.0069*(G3/2)^2+4.7374*(G3/2)-138.94 -> 7295.36 | H19: =0.0069*(H3/2)^2+4.7374*(H3/2)-138.94 -> 7295.36 | I19: =H19*2 -> 14590.72 | J19: 1 | K19: 0.5213921923 | L19: 0.2556075491 | M19: 0.4715201655 | N19: 0.4715201655 | O19: 0.9430403309
B20: Hub Weight | C20: kg | D20: 41200 | E20: 27722 | F20: 15910 | G20: =E20 -> 27722 | H20: =E20 -> 27722 | I20: =H20*1.2 -> 33266.4 | J20: 1 | K20: =E20/$D20 -> 0.6728640777 | L20: 0.3861650485 | M20: =G20/$D20 -> 0.6728640777 | N20: =H20/$D20 -> 0.6728640777 | O20: =I20/$D20 -> 0.8074368932
B21: Thrust Factor | C21: kN | D21: 1646.873 | E21: =$D$21*E5/$D$5 -> 978.8687237 | F21: =$D$21*F5/$D$5 -> 616.6486542 | G21: =$D$21*G5/$D$5 -> 968.9205568 | H21: =$D$21*H5/$D$5 -> 968.9205568 | I21: =$D$21*I5/$D$5 -> 829.9317146 | J21: 1 | K21: 0.5943802125 | L21: 0.3744360702 | M21: =G21/$D21 -> 0.5883395725 | N21: 0.5883395725 | O21: 0.5039439681
B22: Nacelle Length | C22: m | D22: 15 | E22: 15 | F22: 12 | G22: 12 | H22: 12 | I22: 12 | J22: 1 | K22: 1 | L22: 0.8 | M22: 0.8 | N22: 0.8 | O22: 0.8
B23: Nacelle Volume | C23: m^3 | D23: =D22*PI()*D18^2/4 -> 207.816354 | E23: 207.816354 | F23: 136.0937938 | G23: =G22*PI()*G18^2/4 -> 136.0937938 | H23: 136.0937938 | I23: 136.0937938 | J23: 1 | K23: 1 | L23: 0.6548752834 | M23: 0.6548752834 | N23: 0.6548752834 | O23: 0.6548752834

Sheet Scaling Summary
A1: C-Plane - 2400 kW | B1: QTY | C1: 2400 Cost | D1: 1600 Cost | E1: 1000 Cost | F1: 1500 PPDC | G1: 1500 APDC | H1: 2000 APDC | I1: Scaling Factor
B2: - | C2: $ | D2: $ | E2: $ | F2: $ | G2: $ | H2: $ | I2: -
A3: ='BOM Cost'!A3 -> System Total | B3: ='BOM Cost'!B3 -> 1 | C3: ='BOM Cost'!E3 -> 6775436.396 | D3: ='BOM Cost'!G3 -> 4860632.151 | E3: ='BOM Cost'!I3 -> 2852993.62 | F3: ='BOM Cost'!K3 -> 3827395.24 | G3: ='BOM Cost'!M3 -> 3827395.24 | H3: ='BOM Cost'!O3 -> 4489080.476
A4: ='BOM Cost'!A5 -> Truss | B4: ='BOM Cost'!B5 -> 1 | C4: ='BOM Cost'!E5 -> 874500 | D4: ='BOM Cost'!G5 -> 519785.4958 | E4: ='BOM Cost'!I5 -> 327444.3434 | F4: ='BOM Cost'!K5 -> 514502.9562 | G4: ='BOM Cost'!M5 -> 514502.9562 | H4: ='BOM Cost'!O5 -> 440699.0001 | I4: ='BOM Cost'!P6 -> Rotor Area
A5: ='BOM Cost'!A8 -> Nacelle Structure | B5: ='BOM Cost'!B8 -> 2 | C5: ='BOM Cost'!E8 -> 314178.2738 | D5: ='BOM Cost'!G8 -> 314178.2738 | E5: ='BOM Cost'!I8 -> 205747.5861 | F5: ='BOM Cost'!K8 -> 205747.5861 | G5: ='BOM Cost'!M8 -> 205747.5861 | H5: ='BOM Cost'!O8 -> 205747.5861 | I5: ='BOM Cost'!P9 -> Nacelle Volume
A6: ='BOM Cost'!A18 -> Rotor | B6: ='BOM Cost'!B18 -> 2 | C6: ='BOM Cost'!E18 -> 783592 | D6: ='BOM Cost'!G18 -> 442882.28 | E6: ='BOM Cost'!I18 -> 229876.36 | F6: ='BOM Cost'!K18 -> 415103.96 | G6: ='BOM Cost'!M18 -> 415103.96 | H6: ='BOM Cost'!O18 -> 708231.12
A7: ='BOM Cost'!A19 -> Blade | B7: ='BOM Cost'!B19 -> 2 | C7: ='BOM Cost'!E19 -> 278496 | D7: ='BOM Cost'!G19 -> 145205.64 | E7: ='BOM Cost'!I19 -> 71185.68 | F7: ='BOM Cost'!K19 -> 131316.48 | G7: ='BOM Cost'!M19 -> 131316.48 | H7: ='BOM Cost'!O19 -> 262632.96 | I7: ='BOM Cost'!P19 -> Blade Weight
A8: ='BOM Cost'!A20 -> Rotor Hub | B8: ='BOM Cost'!B20 -> 1 | C8: ='BOM Cost'!E20 -> 226600 | D8: ='BOM Cost'!G20 -> 152471 | E8: ='BOM Cost'!I20 -> 87505 | F8: ='BOM Cost'!K20 -> 152471 | G8: ='BOM Cost'!M20 -> 152471 | H8: ='BOM Cost'!O20 -> 182965.2 | I8: ='BOM Cost'!P20 -> Hub Weight
A9: ='BOM Cost'!A22 -> Tail Cone | B9: ='BOM Cost'!B22 -> 2 | C9: ='BOM Cost'!E22 -> 135177 | D9: ='BOM Cost'!G22 -> 135177 | E9: ='BOM Cost'!I22 -> 88524.07619 | F9: ='BOM Cost'!K22 -> 88524.07619 | G9: ='BOM Cost'!M22 -> 88524.07619 | H9: ='BOM Cost'!O22 -> 88524.07619 | I9: ='BOM Cost'!P23 -> Nacelle Volume
A10: ='BOM Cost'!A25 -> Drive Train (Internals) | B10: ='BOM Cost'!B25 -> 2 | C10: ='BOM Cost'!E25 -> 1717520.924 | D10: ='BOM Cost'!G25 -> 1278185.774 | E10: ='BOM Cost'!I25 -> 738626.6161 | F10: ='BOM Cost'!K25 -> 947070.5198 | G10: ='BOM Cost'!M25 -> 947070.5198 | H10: ='BOM Cost'!O25 -> 1021687.956
A11: ='BOM Cost'!A26 -> Hydraulics Package | B11: ='BOM Cost'!B26 -> 1 | C11: ='BOM Cost'!E26 -> 1014525.542 | D11: ='BOM Cost'!G26 -> 864556.3108 | E11: ='BOM Cost'!I26 -> 471806.4631 | F11: ='BOM Cost'!K26 -> 518298.7708 | G11: ='BOM Cost'!M26 -> 518298.7708 | H11: ='BOM Cost'!O26 -> 569249.54
A12: ='BOM Cost'!A27 -> Low Speed Pump - CBM 6000 | B12: ='BOM Cost'!B27 -> 2 | C12: ='BOM Cost'!E27 -> 309400 | D12: ='BOM Cost'!G27 -> 309400 | E12: ='BOM Cost'!I27 -> 154700 | F12: ='BOM Cost'!K27 -> 154700 | G12: ='BOM Cost'!M27 -> 154700 | H12: ='BOM Cost'!O27 -> 154700 | I12: ='BOM Cost'!P27 -> VF Pump Weight
A13: ='BOM Cost'!A31 -> High Speed Variable Pump - A4VS 1000 | B13: ='BOM Cost'!B31 -> 2 | C13: ='BOM Cost'!E31 -> 96800 | D13: ='BOM Cost'!G31 -> 51200 | E13: ='BOM Cost'!I31 -> 36800 | F13: ='BOM Cost'!K31 -> 51200 | G13: ='BOM Cost'!M31 -> 51200 | H13: ='BOM Cost'!O31 -> 66560 | I13: ='BOM Cost'!P31 -> HS Var Pump Weight
A14: ='BOM Cost'!A32 -> High Speed Fixed Pump - A4FM 1000 | B14: ='BOM Cost'!B32 -> 2 | C14: ='BOM Cost'!E32 -> 50769.23077 | D14: ='BOM Cost'!G32 -> 25384.61538 | E14: ='BOM Cost'!I32 -> 19038.46154 | F14: ='BOM Cost'!K32 -> 25384.61538 | G14: ='BOM Cost'!M32 -> 25384.61538 | H14: ='BOM Cost'!O32 -> 33000 | I14: ='BOM Cost'!P32 -> HS Fixed Pump Weight
A15: ='BOM Cost'!A33 -> Charge Pump - A11/190 | B15: ='BOM Cost'!B33 -> 1 | C15: ='BOM Cost'!E33 -> 2650 | D15: ='BOM Cost'!G33 -> 2650 | E15: ='BOM Cost'!I33 -> 2650 | F15: ='BOM Cost'!K33 -> 2650 | G15: ='BOM Cost'!M33 -> 2650 | H15: ='BOM Cost'!O33 -> 2650 | I15: ='BOM Cost'!P33 -> Pressure
A16: ='BOM Cost'!A35 -> Hex - Heat Exchanger | B16: ='BOM Cost'!B35 -> 1 | C16: ='BOM Cost'!E35 -> 24000 | D16: ='BOM Cost'!G35 -> 16000 | E16: ='BOM Cost'!I35 -> 10000 | F16: ='BOM Cost'!K35 -> 15000 | G16: ='BOM Cost'!M35 -> 15000 | H16: ='BOM Cost'!O35 -> 20000 | I16: ='BOM Cost'!P35 -> MW Rating
A17: ='BOM Cost'!A36 -> Balance of Hydraulic System | B17: ='BOM Cost'!B36 -> 1 | C17: ='BOM Cost'!E36 -> 65000 | D17: ='BOM Cost'!G36 -> 65000 | E17: ='BOM Cost'!I36 -> 32500 | F17: ='BOM Cost'!K36 -> 32500 | G17: ='BOM Cost'!M36 -> 32500 | H17: ='BOM Cost'!O36 -> 32500 | I17: ='BOM Cost'!P36 -> VF Pump Volume
A18: ='BOM Cost'!A37 -> Bearings & Seals Package | B18: ='BOM Cost'!B37 -> 1 | C18: ='BOM Cost'!E37 -> 589395.3825 | D18: ='BOM Cost'!G37 -> 337896.1298 | E18: ='BOM Cost'!I37 -> 219486.8197 | F18: ='BOM Cost'!K37 -> 357771.7491 | G18: ='BOM Cost'!M37 -> 357771.7491 | H18: ='BOM Cost'!O37 -> 357771.7491 | I18: ='BOM Cost'!P38 -> TRB Design Weight
A19: ='BOM Cost'!A56 -> Electrical System | B19: ='BOM Cost'!B56 -> 1 | C19: ='BOM Cost'!E56 -> 113600 | D19: ='BOM Cost'!G56 -> 75733.33333 | E19: ='BOM Cost'!I56 -> 47333.33333 | F19: ='BOM Cost'!K56 -> 71000 | G19: ='BOM Cost'!M56 -> 71000 | H19: ='BOM Cost'!O56 -> 94666.66667 | I19: ='BOM Cost'!P57 -> MW Rating
A20: ='BOM Cost'!A66 -> Monitoring/Controls | B20: ='BOM Cost'!B66 -> 1 | C20: ='BOM Cost'!E66 -> 0 | D20: ='BOM Cost'!G66 -> 0 | E20: ='BOM Cost'!I66 -> 0 | F20: ='BOM Cost'!K66 -> 0 | G20: ='BOM Cost'!M66 -> 0 | H20: ='BOM Cost'!O66 -> 0
A22: Additional CAPEX
A23: Installation | C23: ='Install, Asm, O&M'!C9+'Install, Asm, O&M'!C16 -> 1325516.006 | D23: ='Install, Asm, O&M'!D9+'Install, Asm, O&M'!D16 -> 1218110.973 | E23: ='Install, Asm, O&M'!E9+'Install, Asm, O&M'!E16 -> 888449.681 | F23: ='Install, Asm, O&M'!F9+'Install, Asm, O&M'!F16 -> 1164951.852 | G23: ='Install, Asm, O&M'!G9+'Install, Asm, O&M'!G16 -> 1164951.852 | H23: ='Install, Asm, O&M'!H9+'Install, Asm, O&M'!H16 -> 1206054.024 | I23: Install Days
A24: Grid Connection | C24: ='Grid Connection - MW Scale'!C3 -> 1177505.581 | D24: ='Grid Connection - MW Scale'!D3 -> 872231.6717 | E24: ='Grid Connection - MW Scale'!E3 -> 628498.7234 | F24: ='Grid Connection - MW Scale'!F3 -> 832065.9956 | G24: ='Grid Connection - MW Scale'!G3 -> 832065.9956 | H24: ='Grid Connection - MW Scale'!H3 -> 1037817.447 | I24: MW Rating & # Machines
A25: Mooring | C25: ='Mooring Cost'!C4 -> 750600 | D25: ='Mooring Cost'!D4 -> 665485.4611 | E25: ='Mooring Cost'!E4 -> 528196.1602 | F25: ='Mooring Cost'!F4 -> 662095.1868 | G25: ='Mooring Cost'!G4 -> 662095.1868 | H25: ='Mooring Cost'!H4 -> 662095.1868 | I25: Thrust Load
A27: OPEX
A28: O&M | C28: ='Install, Asm, O&M'!C33 -> 239166.1598 | D28: ='Install, Asm, O&M'!D33 -> 210738.4984 | E28: ='Install, Asm, O&M'!E33 -> 147280.0774 | F28: ='Install, Asm, O&M'!F33 -> 189582.2889 | G28: ='Install, Asm, O&M'!G33 -> 189205.9689 | H28: ='Install, Asm, O&M'!H33 -> 197947.9542 | I28: CAPEX $
A29: LRC | C29: ='Install, Asm, O&M'!C46 -> 144500 | D29: ='Install, Asm, O&M'!D46 -> 120866.446 | E29: ='Install, Asm, O&M'!E46 -> 93656.48984 | F29: ='Install, Asm, O&M'!F46 -> 105712.8948 | G29: ='Install, Asm, O&M'!G46 -> 105712.8948 | H29: ='Install, Asm, O&M'!H46 -> 117010.2576 | I29: CAPEX $

Sheet AEP
A2: System Rating | B2: kW | C2: 2400 | D2: 1600 | E2: 1000 | F2: 1500 | G2: 1500 | H2: 1900
A3: Florida Current | B3: MWh | C3: 13650.83504 | D3: 9031.642312 | E3: 5689.578124 | F3: =4965.5*2*0.9 -> 8937.9 | G3: =3562.4*2*0.9 -> 6412.32 | H3: =4426.3*2*0.9 -> 7967.34
B9: PPA | C9: 150 | D9: 150 | E9: 150 | F9: 150 | G9: 150 | H9: 150
B10: Net Income/Yr | C10: =C3*(C9)-'Scaling Summary'!C28-'Scaling Summary'!C29 -> 1663959.096 | D10: =D3*(D9)-'Scaling Summary'!D28-'Scaling Summary'!D29 -> 1023141.402 | E10: =E3*(E9)-'Scaling Summary'!E28-'Scaling Summary'!E29 -> 612500.1513 | F10: =F3*(F9)-'Scaling Summary'!F28-'Scaling Summary'!F29 -> 1045389.816 | G10: =G3*(G9)-'Scaling Summary'!G28-'Scaling Summary'!G29 -> 666929.1363 | H10: =H3*(H9)-'Scaling Summary'!H28-'Scaling Summary'!H29 -> 880142.7882
B11: ICC | C11: =('Scaling Summary'!C3+'Scaling Summary'!C23+'Scaling Summary'!C24+'Scaling Summary'!C25) -> 10029057.98 | D11: =('Scaling Summary'!D3+'Scaling Summary'!D23+'Scaling Summary'!D24+'Scaling Summary'!D25) -> 7616460.257 | E11: =('Scaling Summary'!E3+'Scaling Summary'!E23+'Scaling Summary'!E24+'Scaling Summary'!E25) -> 4898138.185 | F11: =('Scaling Summary'!F3+'Scaling Summary'!F23+'Scaling Summary'!F24+'Scaling Summary'!F25) -> 6486508.274 | G11: =('Scaling Summary'!G3+'Scaling Summary'!G23+'Scaling Summary'!G24+'Scaling Summary'!G25) -> 6486508.274 | H11: =('Scaling Summary'!H3+'Scaling Summary'!H23+'Scaling Summary'!H24+'Scaling Summary'!H25) -> 7395047.134
B12: Simple Payback | C12: =C11/C10 -> 6.027226276 | D12: =D11/D10 -> 7.444191233 | E12: 7.996958327 | F12: 6.204870349 | G12: 9.725933268 | H12: 8.402099333
B13: ROI | C13: =-PV(0.07,20,C10)-C11 -> 7598948.379 | D13: =-PV(0.07,20,D10)-D11 -> 3222714.334 | E13: 1590697.143 | F13: 4588366.332 | G13: 578948.4966 | H13: 1929198.103
B14: IRR | C14: =C13/C11 -> 0.7576931345 | D14: =D13/D11 -> 0.4231249459 | E14: 0.3247554648 | F14: 0.7073707668 | G14: 0.08925426009 | H14: 0.2608770529

Sheet BOM Cost
A1: C-Plane | B1: QTY | C1: Weight | E1: Cost | F1: Config1 | G1: 1600 kW | H1: Config2 | I1: 1000 kW | J1: Config 3 | K1: 750 kW | L1: config 4 | M1: 500 kW | N1: config 5 | O1: 100 kW | P1: Scaling Factor
B2: - | C2: kg | D2: $/kg | E2: $ | F2: - | G2: $ | H2: - | I2: $ | J2: - | K2: $ | L2: - | M2: $ | N2: - | O2: $ | P2: -
A3: System Total | B3: 1 | C3: =$B$4*C4+$B$25*C25 -> 679244.8554 | E3: =$B$4*E4+$B$25*E25 -> 6775436.396 | G3: =$B$4*G4+$B$25*G25 -> 4860632.151 | I3: =$B$4*I4+$B$25*I25 -> 2852993.62 | K3: =$B$4*K4+$B$25*K25 -> 3827395.24 | M3: =$B$4*M4+$B$25*M25 -> 3827395.24 | O3: =$B$4*O4+$B$25*O25 -> 4489080.476
A4: Platform | B4: 1 | C4: =$B$5*C5+$B$8*C8+$B$18*C18+$B$22*C22 -> 491852.5602 | E4: =$B$5*E5+$B$8*E8+$B$18*E18+$B$22*E22 -> 3340394.548 | G4: =$B$5*G5+$B$8*G8+$B$18*G18+$B$22*G22 -> 2304260.603 | I4: =$B$5*I5+$B$8*I8+$B$18*I18+$B$22*I22 -> 1375740.388 | K4: =$B$5*K5+$B$8*K8+$B$18*K18+$B$22*K22 -> 1933254.201 | M4: =$B$5*M5+$B$8*M8+$B$18*M18+$B$22*M22 -> 1933254.201 | O4: =$B$5*O5+$B$8*O8+$B$18*O18+$B$22*O22 -> 2445704.565
A5: Truss | B5: 1 | C5: =SUMPRODUCT($B$6:$B$7,C6:C7) -> 159000 | E5: =SUMPRODUCT($B$6:$B$7,E6:E7) -> 874500 | G5: =SUMPRODUCT($B$6:$B$7,G6:G7) -> 519785.4958 | I5: =SUMPRODUCT($B$6:$B$7,I6:I7) -> 327444.3434 | K5: =SUMPRODUCT($B$6:$B$7,K6:K7) -> 514502.9562 | M5: =SUMPRODUCT($B$6:$B$7,M6:M7) -> 514502.9562 | O5: =SUMPRODUCT($B$6:$B$7,O6:O7) -> 440699.0001
A6: Truss Structure | B6: 1 | C6: 159000 | D6: 5.5 | E6: =C6*D6 -> 874500 | F6: ='Scaling Factors'!$K$5 -> 0.5943802125 | G6: =$E6*F6 -> 519785.4958 | H6: ='Scaling Factors'!$L$5 -> 0.3744360702 | I6: =$E6*H6 -> 327444.3434 | J6: ='Scaling Factors'!$M$5 -> 0.5883395725 | K6: =$E6*J6 -> 514502.9562 | L6: ='Scaling Factors'!$N$5 -> 0.5883395725 | M6: =E6*L6 -> 514502.9562 | N6: ='Scaling Factors'!$O$5 -> 0.5039439681 | O6: =E6*N6 -> 440699.0001 | P6: ='Scaling Factors'!$B$5 -> Rotor Area
A7: Fairing Assembly
A8: Nacelle Structure | B8: 2 | C8: =SUMPRODUCT($B$9:$B$17,C9:C17) -> 74971.28009 | E8: =SUMPRODUCT($B$9:$B$17,E9:E17) -> 314178.2738 | G8: =SUMPRODUCT($B$9:$B$17,G9:G17) -> 314178.2738 | I8: =SUMPRODUCT($B$9:$B$17,I9:I17) -> 205747.5861 | K8: =SUMPRODUCT($B$9:$B$17,K9:K17) -> 205747.5861 | M8: =SUMPRODUCT($B$9:$B$17,M9:M17) -> 205747.5861 | O8: =SUMPRODUCT($B$9:$B$17,O9:O17) -> 205747.5861
A9: Nacelle Upstream Bulkhead | B9: 1 | C9: 15572.34072 | D9: 5.82 | E9: =C9*D9 -> 90631.02299 | F9: ='Scaling Factors'!$K$23 -> 1 | G9: =$E9*F9 -> 90631.02299 | H9: ='Scaling Factors'!$L$23 -> 0.6548752834 | I9: =$E9*H9 -> 59352.01687 | J9: ='Scaling Factors'!$M$23 -> 0.6548752834 | K9: =$E9*J9 -> 59352.01687 | L9: ='Scaling Factors'!$N$23 -> 0.6548752834 | M9: =$E9*L9 -> 59352.01687 | N9: ='Scaling Factors'!$O$23 -> 0.6548752834 | O9: =$E9*N9 -> 59352.01687 | P9: ='Scaling Factors'!$B$23 -> Nacelle Volume
A10: Nacelle Center Body | B10: 1 | C10: 52546.63639 | D10: 3.82 | E10: 200728.151 | F10: ='Scaling Factors'!$K$23 -> 1 | G10: 200728.151 | H10: ='Scaling Factors'!$L$23 -> 0.6548752834 | I10: 131451.9048 | J10: ='Scaling Factors'!$M$23 -> 0.6548752834 | K10: 131451.9048 | L10: ='Scaling Factors'!$N$23 -> 0.6548752834 | M10: 131451.9048 | N10: ='Scaling Factors'!$O$23 -> 0.6548752834 | O10: 131451.9048 | P10: ='Scaling Factors'!$B$23 -> Nacelle Volume
A11: Blind Flange | B11: 1 | C11: 1381.302979 | D11: 3.3 | E11: 4558.29983 | F11: ='Scaling Factors'!$K$23 -> 1 | G11: 4558.29983 | H11: ='Scaling Factors'!$L$23 -> 0.6548752834 | I11: 2985.117893 | J11: ='Scaling Factors'!$M$23 -> 0.6548752834 | K11: 2985.117893 | L11: ='Scaling Factors'!$N$23 -> 0.6548752834 | M11: 2985.117893 | N11: ='Scaling Factors'!$O$23 -> 0.6548752834 | O11: 2985.117893 | P11: ='Scaling Factors'!$B$23 -> Nacelle Volume
A12: Deck Beams | B12: 15 | C12: 93 | D12: 3.3 | E12: 306.9 | F12: ='Scaling Factors'!$K$23 -> 1 | G12: 306.9 | H12: ='Scaling Factors'!$L$23 -> 0.6548752834 | I12: 200.9812245 | J12: ='Scaling Factors'!$M$23 -> 0.6548752834 | K12: 200.9812245 | L12: ='Scaling Factors'!$N$23 -> 0.6548752834 | M12: 200.9812245 | N12: ='Scaling Factors'!$O$23 -> 0.6548752834 | O12: 200.9812245 | P12: ='Scaling Factors'!$B$23 -> Nacelle Volume
A13: Deck Plates | B13: 8 | C13: 134 | D13: 3.3 | E13: 442.2 | F13: ='Scaling Factors'!$K$23 -> 1 | G13: 442.2 | H13: ='Scaling Factors'!$L$23 -> 0.6548752834 | I13: 289.5858503 | J13: ='Scaling Factors'!$M$23 -> 0.6548752834 | K13: 289.5858503 | L13: ='Scaling Factors'!$N$23 -> 0.6548752834 | M13: 289.5858503 | N13: ='Scaling Factors'!$O$23 -> 0.6548752834 | O13: 289.5858503 | P13: ='Scaling Factors'!$B$23 -> Nacelle Volume
A14: Rail Joist | B14: 9 | C14: 36 | D14: 3.3 | E14: 118.8 | F14: ='Scaling Factors'!$K$23 -> 1 | G14: 118.8 | H14: ='Scaling Factors'!$L$23 -> 0.6548752834 | I14: 77.79918367 | J14: ='Scaling Factors'!$M$23 -> 0.6548752834 | K14: 77.79918367 | L14: ='Scaling Factors'!$N$23 -> 0.6548752834 | M14: 77.79918367 | N14: ='Scaling Factors'!$O$23 -> 0.6548752834 | O14: 77.79918367 | P14: ='Scaling Factors'!$B$23 -> Nacelle Volume
A15: Hoist Rail | B15: 9 | C15: 181 | D15: 3.3 | E15: 597.3 | F15: ='Scaling Factors'!$K$23 -> 1 | G15: 597.3 | H15: ='Scaling Factors'!$L$23 -> 0.6548752834 | I15: 391.1570068 | J15: ='Scaling Factors'!$M$23 -> 0.6548752834 | K15: 391.1570068 | L15: ='Scaling Factors'!$N$23 -> 0.6548752834 | M15: 391.1570068 | N15: ='Scaling Factors'!$O$23 -> 0.6548752834 | O15: 391.1570068 | P15: ='Scaling Factors'!$B$23 -> Nacelle Volume
A16: Hoist | B16: 1 | C16: 695 | D16: 3.3 | E16: 2500 | F16: ='Scaling Factors'!$K$23 -> 1 | G16: 2500 | H16: ='Scaling Factors'!$L$23 -> 0.6548752834 | I16: 1637.188209 | J16: ='Scaling Factors'!$M$23 -> 0.6548752834 | K16: 1637.188209 | L16: ='Scaling Factors'!$N$23 -> 0.6548752834 | M16: 1637.188209 | N16: ='Scaling Factors'!$O$23 -> 0.6548752834 | O16: 1637.188209 | P16: ='Scaling Factors'!$B$23 -> Nacelle Volume
A17: Transformer Base | B17: 1 | C17: 356 | D17: 3.3 | E17: =C17*D17 -> 1174.8 | F17: ='Scaling Factors'!$K$23 -> 1 | G17: 1174.8 | H17: ='Scaling Factors'!$L$23 -> 0.6548752834 | I17: 769.347483 | J17: ='Scaling Factors'!$M$23 -> 0.6548752834 | K17: 769.347483 | L17: ='Scaling Factors'!$N$23 -> 0.6548752834 | M17: 769.347483 | N17: ='Scaling Factors'!$O$23 -> 0.6548752834 | O17: 769.347483 | P17: ='Scaling Factors'!$B$23 -> Nacelle Volume
A18: Rotor | B18: 2 | C18: =SUMPRODUCT($B$19:$B$21,C19:C21) -> 72144 | E18: =SUMPRODUCT($B$19:$B$21,E19:E21) -> 783592 | G18: =SUMPRODUCT($B$19:$B$21,G19:G21) -> 442882.28 | I18: =SUMPRODUCT($B$19:$B$21,I19:I21) -> 229876.36 | K18: =SUMPRODUCT($B$19:$B$21,K19:K21) -> 415103.96 | M18: =SUMPRODUCT($B$19:$B$21,M19:M21) -> 415103.96 | O18: =SUMPRODUCT($B$19:$B$21,O19:O21) -> 708231.12
A19: Blade | B19: 2 | C19: 15472 | D19: 18 | E19: =C19*D19 -> 278496 | F19: ='Scaling Factors'!K$19 -> 0.5213921923 | G19: =$E19*F19 -> 145205.64 | H19: ='Scaling Factors'!$L$19 -> 0.2556075491 | I19: =$E19*H19 -> 71185.68 | J19: ='Scaling Factors'!$M$19 -> 0.4715201655 | K19: =$E19*J19 -> 131316.48 | L19: ='Scaling Factors'!$N$19 -> 0.4715201655 | M19: =$E19*L19 -> 131316.48 | N19: ='Scaling Factors'!$O$19 -> 0.9430403309 | O19: =$E19*N19 -> 262632.96 | P19: ='Scaling Factors'!$B$19 -> Blade Weight
A20: Rotor Hub | B20: 1 | C20: 41200 | D20: =2.2*2.5 -> 5.5 | E20: =C20*D20 -> 226600 | F20: ='Scaling Factors'!$K$20 -> 0.6728640777 | G20: =$E20*F20 -> 152471 | H20: ='Scaling Factors'!$L$20 -> 0.3861650485 | I20: =$E20*H20 -> 87505 | J20: ='Scaling Factors'!$M$20 -> 0.6728640777 | K20: =$E20*J20 -> 152471 | L20: ='Scaling Factors'!$N$20 -> 0.6728640777 | M20: =$E20*L20 -> 152471 | N20: ='Scaling Factors'!$O$20 -> 0.8074368932 | O20: =$E20*N20 -> 182965.2 | P20: ='Scaling Factors'!$B$20 -> Hub Weight
A21: Blade / Hub Foam
A22: Tail Cone | B22: 2 | C22: =SUMPRODUCT($B$23:$B$24,C23:C24) -> 19311 | E22: =SUMPRODUCT($B$23:$B$24,E23:E24) -> 135177 | G22: =SUMPRODUCT($B$23:$B$24,G23:G24) -> 135177 | I22: =SUMPRODUCT($B$23:$B$24,I23:I24) -> 88524.07619 | K22: =SUMPRODUCT($B$23:$B$24,K23:K24) -> 88524.07619 | M22: =SUMPRODUCT($B$23:$B$24,M23:M24) -> 88524.07619 | O22: =SUMPRODUCT($B$23:$B$24,O23:O24) -> 88524.07619
A23: Tail Cone | B23: 1 | C23: 19311 | D23: 7 | E23: =C23*D23 -> 135177 | F23: ='Scaling Factors'!$K$23 -> 1 | G23: =$E23*F23 -> 135177 | H23: ='Scaling Factors'!$L$23 -> 0.6548752834 | I23: =$E23*H23 -> 88524.07619 | J23: ='Scaling Factors'!$M$23 -> 0.6548752834 | K23: =$E23*J23 -> 88524.07619 | L23: ='Scaling Factors'!$N$23 -> 0.6548752834 | M23: =$E23*L23 -> 88524.07619 | N23: ='Scaling Factors'!$O$23 -> 0.6548752834 | O23: =$E23*N23 -> 88524.07619 | P23: ='Scaling Factors'!$B$23 -> Nacelle Volume
A24: Fairing
A25: Drive Train (Internals) | B25: 2 | C25: =$B$26*C26+$B$37*C37+$B$56*C56+$B$66*C66 -> 93696.14762 | E25: =$B$26*E26+$B$37*E37+$B$56*E56+$B$66*E66 -> 1717520.924 | G25: =$B$26*G26+$B$37*G37+$B$56*G56+$B$66*G66 -> 1278185.774 | I25: =$B$26*I26+$B$37*I37+$B$56*I56+$B$66*I66 -> 738626.6161 | K25: =$B$26*K26+$B$37*K37+$B$56*K56+$B$66*K66 -> 947070.5198 | M25: =$B$26*M26+$B$37*M37+$B$56*M56+$B$66*M66 -> 947070.5198 | O25: =$B$26*O26+$B$37*O37+$B$56*O56+$B$66*O66 -> 1021687.956
A26: Hydraulics Package | B26: 1 | C26: =SUMPRODUCT($B$27:$B$36,C27:C36) -> 27145.1 | E26: =SUMPRODUCT($B$27:$B$36,E27:E36) -> 1014525.542 | G26: =SUMPRODUCT($B$27:$B$36,G27:G36) -> 864556.3108 | I26: =SUMPRODUCT($B$27:$B$36,I27:I36) -> 471806.4631 | K26: =SUMPRODUCT($B$27:$B$36,K27:K36) -> 518298.7708 | M26: =SUMPRODUCT($B$27:$B$36,M27:M36) -> 518298.7708 | O26: =SUMPRODUCT($B$27:$B$36,O27:O36) -> 569249.54
A27: Low Speed Pump - CBM 6000 | B27: 2 | C27: 7500 | D27: 41.25333333 | E27: =C27*D27 -> 309400 | F27: ='Scaling Factors'!$K$12 -> 1 | G27: =$E27*F27 -> 309400 | H27: ='Scaling Factors'!$L$12 -> 0.5 | I27: =$E27*H27 -> 154700 | J27: ='Scaling Factors'!$M$12 -> 0.5 | K27: =$E27*J27 -> 154700 | L27: ='Scaling Factors'!$N$12 -> 0.5 | M27: =$E27*L27 -> 154700 | N27: ='Scaling Factors'!$O$12 -> 0.5 | O27: =$E27*N27 -> 154700 | P27: ='Scaling Factors'!$B$12 -> VF Pump Weight
A28: Torque Arm | B28: 2 | C28: 893.8 | D28: =3.3 -> 3.3 | E28: 2949.54 | F28: 1 | G28: 2949.54 | H28: 0.5 | I28: 1474.77 | J28: 0.5 | K28: 1474.77 | L28: 0.5 | M28: 1474.77 | N28: 0.5 | O28: 1474.77 | P28: Approx
A29: Hagglund Torque Cylinder | B29: 2 | C29: 41 | D29: 6 | E29: 246 | F29: 1 | G29: 246 | H29: 0.5 | I29: 123 | J29: 0.5 | K29: 123 | L29: 0.5 | M29: 123 | N29: 0.5 | O29: 123 | P29: Approx
A30: Hagglund Torque Rod Assembly | B30: 2 | C30: 27 | D30: 6 | E30: 162 | F30: 1 | G30: 162 | H30: 0.5 | I30: 81 | J30: 0.5 | K30: 81 | L30: 0.5 | M30: 81 | N30: 0.5 | O30: 81 | P30: Approx
A31: High Speed Variable Pump - A4VS 1000 | B31: 2 | C31: 1210 | D31: 80 | E31: 96800 | F31: ='Scaling Factors'!$K$15 -> 0.5289256198 | G31: 51200 | H31: ='Scaling Factors'!$L$15 -> 0.3801652893 | I31: 36800 | J31: ='Scaling Factors'!$M$15 -> 0.5289256198 | K31: 51200 | L31: ='Scaling Factors'!$N$15 -> 0.5289256198 | M31: 51200 | N31: ='Scaling Factors'!$O$15 -> 0.6876033058 | O31: 66560 | P31: ='Scaling Factors'!$B$15 -> HS Var Pump Weight
A32: High Speed Fixed Pump - A4FM 1000 | B32: 2 | C32: 880 | D32: 57.69230769 | E32: 50769.23077 | F32: ='Scaling Factors'!$K$16 -> 0.5 | G32: 25384.61538 | H32: ='Scaling Factors'!$L$16 -> 0.375 | I32: 19038.46154 | J32: ='Scaling Factors'!$M$16 -> 0.5 | K32: 25384.61538 | L32: ='Scaling Factors'!$N$16 -> 0.5 | M32: 25384.61538 | N32: ='Scaling Factors'!$O$16 -> 0.65 | O32: 33000 | P32: ='Scaling Factors'!$B$16 -> HS Fixed Pump Weight
A33: Charge Pump - A11/190 | B33: 1 | C33: 95 | E33: 2650 | F33: ='Scaling Factors'!$K$13 -> 1 | G33: 2650 | H33: ='Scaling Factors'!$L$13 -> 1 | I33: 2650 | J33: ='Scaling Factors'!$M$13 -> 1 | K33: 2650 | L33: ='Scaling Factors'!$N$13 -> 1 | M33: 2650 | N33: ='Scaling Factors'!$O$13 -> 1 | O33: 2650 | P33: ='Scaling Factors'!$B$13 -> Pressure
A34: Charge Pump Motor (W/ Adapter, Cplg) | B34: 1 | C34: 100.5 | E34: 2222 | F34: ='Scaling Factors'!$K$13 -> 1 | G34: 2222 | H34: ='Scaling Factors'!$M$13 -> 1 | I34: 2222 | J34: ='Scaling Factors'!$M$13 -> 1 | K34: 2222 | L34: ='Scaling Factors'!$N$13 -> 1 | M34: 2222 | N34: ='Scaling Factors'!$O$13 -> 1 | O34: 2222 | P34: ='Scaling Factors'!$B$13 -> Pressure
A35: Hex - Heat Exchanger | B35: 1 | C35: 1790 | E35: 24000 | F35: ='Scaling Factors'!$K$3 -> 0.6666666667 | G35: 16000 | H35: ='Scaling Factors'!$L$3 -> 0.4166666667 | I35: 10000 | J35: ='Scaling Factors'!$M$3 -> 0.625 | K35: 15000 | L35: ='Scaling Factors'!$N$3 -> 0.625 | M35: 15000 | N35: ='Scaling Factors'!$O$3 -> 0.8333333333 | O35: 20000 | P35: ='Scaling Factors'!$B$3 -> MW Rating
A36: Balance of Hydraulic System | B36: 1 | C36: 4056 | E36: 65000 | F36: ='Scaling Factors'!$K$10 -> 1 | G36: 65000 | H36: ='Scaling Factors'!$L$10 -> 0.5 | I36: 32500 | J36: ='Scaling Factors'!$M$10 -> 0.5 | K36: 32500 | L36: ='Scaling Factors'!$N$10 -> 0.5 | M36: 32500 | N36: ='Scaling Factors'!$O$10 -> 0.5 | O36: 32500 | P36: ='Scaling Factors'!$B$10 -> VF Pump Volume
A37: Bearings & Seals Package | B37: 1 | C37: =SUMPRODUCT($B$38:$B$55,C38:C55) -> 55135.29478 | E37: =SUMPRODUCT($B$38:$B$55,E38:E55) -> 589395.3825 | G37: =SUMPRODUCT($B$38:$B$55,G38:G55) -> 337896.1298 | I37: =SUMPRODUCT($B$38:$B$55,I38:I55) -> 219486.8197 | K37: =SUMPRODUCT($B$38:$B$55,K38:K55) -> 357771.7491 | M37: =SUMPRODUCT($B$38:$B$55,M38:M55) -> 357771.7491 | O37: =SUMPRODUCT($B$38:$B$55,O38:O55) -> 357771.7491
A38: Mainshaft | B38: 1 | C38: 18000 | D38: 12 | E38: =C38*D38 -> 216000 | F38: ='Scaling Factors'!$K$17 -> 0.5732928011 | G38: =$E38*F38 -> 123831.245 | H38: ='Scaling Factors'!$L$17 -> 0.3723931782 | I38: =$E38*H38 -> 80436.9265 | J38: ='Scaling Factors'!$M$17 -> 0.607014849 | K38: =$E38*J38 -> 131115.2074 | L38: ='Scaling Factors'!$N$17 -> 0.607014849 | M38: =$E38*L38 -> 131115.2074 | N38: ='Scaling Factors'!$O$17 -> 0.607014849 | O38: =$E38*N38 -> 131115.2074 | P38: ='Scaling Factors'!$B$17 -> TRB Design Weight
A39: Bearing, CARB | B39: 1 | C39: 516 | D39: 37.59108527 | E39: 19397 | F39: ='Scaling Factors'!$K$17 -> 0.5732928011 | G39: 11120.16046 | H39: ='Scaling Factors'!$L$17 -> 0.3723931782 | I39: 7223.310478 | J39: ='Scaling Factors'!$M$17 -> 0.607014849 | K39: 11774.26703 | L39: ='Scaling Factors'!$N$17 -> 0.607014849 | M39: 11774.26703 | N39: ='Scaling Factors'!$O$17 -> 0.607014849 | O39: 11774.26703 | P39: ='Scaling Factors'!$B$17 -> TRB Design Weight
A40: TRB,Aft | B40: 1 | C40: 461.6780045 | D40: 54.4661578 | E40: 25145.82705 | F40: ='Scaling Factors'!$K$17 -> 0.5732928011 | G40: 14415.92162 | H40: ='Scaling Factors'!$L$17 -> 0.3723931782 | I40: 9364.134454 | J40: ='Scaling Factors'!$M$17 -> 0.607014849 | K40: 15263.89041 | L40: ='Scaling Factors'!$N$17 -> 0.607014849 | M40: 15263.89041 | N40: ='Scaling Factors'!$O$17 -> 0.607014849 | O40: 15263.89041 | P40: ='Scaling Factors'!$B$17 -> TRB Design Weight
A41: TRB, Fwd | B41: 1 | C41: 301.5873016 | D41: 62.12758466 | E41: 18736.89061 | F41: ='Scaling Factors'!$K$17 -> 0.5732928011 | G41: 10741.7245 | H41: ='Scaling Factors'!$L$17 -> 0.3723931782 | I41: 6977.490245 | J41: ='Scaling Factors'!$M$17 -> 0.607014849 | K41: 11373.57083 | L41: ='Scaling Factors'!$N$17 -> 0.607014849 | M41: 11373.57083 | N41: ='Scaling Factors'!$O$17 -> 0.607014849 | O41: 11373.57083 | P41: ='Scaling Factors'!$B$17 -> TRB Design Weight
A42: Nacelle Aft Bulkhead - Housing, Bearing | B42: 1 | C42: 26000 | D42: 6.8 | E42: 176800 | F42: ='Scaling Factors'!$K$17 -> 0.5732928011 | G42: 101358.1672 | H42: ='Scaling Factors'!$L$17 -> 0.3723931782 | I42: 65839.11391 | J42: ='Scaling Factors'!$M$17 -> 0.607014849 | K42: 107320.2253 | L42: ='Scaling Factors'!$N$17 -> 0.607014849 | M42: 107320.2253 | N42: ='Scaling Factors'!$O$17 -> 0.607014849 | O42: 107320.2253 | P42: ='Scaling Factors'!$B$17 -> TRB Design Weight
A43: Bearing Retainer | B43: 1 | C43: 549 | D43: 7.56284153 | E43: 4152 | F43: ='Scaling Factors'!$K$17 -> 0.5732928011 | G43: 2380.31171 | H43: ='Scaling Factors'!$L$17 -> 0.3723931782 | I43: 1546.176476 | J43: ='Scaling Factors'!$M$17 -> 0.607014849 | K43: 2520.325653 | L43: ='Scaling Factors'!$N$17 -> 0.607014849 | M43: 2520.325653 | N43: ='Scaling Factors'!$O$17 -> 0.607014849 | O43: 2520.325653 | P43: ='Scaling Factors'!$B$17 -> TRB Design Weight
A44: Oil Dam | B44: 1 | C44: 15.41950113 | D44: 16.44 | E44: 253.4965986 | F44: ='Scaling Factors'!$K$17 -> 0.5732928011 | G44: 145.3277751 | H44: ='Scaling Factors'!$L$17 -> 0.3723931782 | I44: 94.40040404 | J44: ='Scaling Factors'!$M$17 -> 0.607014849 | K44: 153.8761995 | L44: ='Scaling Factors'!$N$17 -> 0.607014849 | M44: 153.8761995 | N44: ='Scaling Factors'!$O$17 -> 0.607014849 | O44: 153.8761995 | P44: ='Scaling Factors'!$B$17 -> TRB Design Weight
A45: Hub For Seal | B45: 1 | C45: 513.8321995 | D45: 5.34 | E45: 2743.863946 | F45: ='Scaling Factors'!$K$17 -> 0.5732928011 | G45: 1573.037447 | H45: ='Scaling Factors'!$L$17 -> 0.3723931782 | I45: 1021.796215 | J45: ='Scaling Factors'!$M$17 -> 0.607014849 | K45: 1665.566158 | L45: ='Scaling Factors'!$N$17 -> 0.607014849 | M45: 1665.566158 | N45: ='Scaling Factors'!$O$17 -> 0.607014849 | O45: 1665.566158 | P45: ='Scaling Factors'!$B$17 -> TRB Design Weight
A46: Main Seal | B46: 1 | C46: 878.9115646 | D46: 54.17734828 | E46: 47617.09794 | F46: ='Scaling Factors'!$K$17 -> 0.5732928011 | G46: 27298.53946 | H46: ='Scaling Factors'!$L$17 -> 0.3723931782 | I46: 17732.28244 | J46: ='Scaling Factors'!$M$17 -> 0.607014849 | K46: 28904.28552 | L46: ='Scaling Factors'!$N$17 -> 0.607014849 | M46: 28904.28552 | N46: ='Scaling Factors'!$O$17 -> 0.607014849 | O46: 28904.28552 | P46: ='Scaling Factors'!$B$17 -> TRB Design Weight
A47: Hub, Brake | B47: 1 | C47: 769.6145125 | D47: 7.65 | E47: 5887.55102 | F47: ='Scaling Factors'!$K$17 -> 0.5732928011 | G47: 3375.290616 | H47: ='Scaling Factors'!$L$17 -> 0.3723931782 | I47: 2192.483836 | J47: ='Scaling Factors'!$M$17 -> 0.607014849 | K47: 3573.830893 | L47: ='Scaling Factors'!$N$17 -> 0.607014849 | M47: 3573.830893 | N47: ='Scaling Factors'!$O$17 -> 0.607014849 | O47: 3573.830893 | P47: ='Scaling Factors'!$B$17 -> TRB Design Weight
A48: Spacer, Bearing | B48: 1 | C48: 34.92063492 | D48: 13.5 | E48: 471.4285714 | F48: ='Scaling Factors'!$K$17 -> 0.5732928011 | G48: 270.2666062 | H48: ='Scaling Factors'!$L$17 -> 0.3723931782 | I48: 175.556784 | J48: ='Scaling Factors'!$M$17 -> 0.607014849 | K48: 286.1641431 | L48: ='Scaling Factors'!$N$17 -> 0.607014849 | M48: 286.1641431 | N48: ='Scaling Factors'!$O$17 -> 0.607014849 | O48: 286.1641431 | P48: ='Scaling Factors'!$B$17 -> TRB Design Weight
A49: Plate, Brake Disc | B49: 6 | C49: 176.8707483 | D49: 9 | E49: 1591.836735 | F49: ='Scaling Factors'!$K$17 -> 0.5732928011 | G49: 912.5885405 | H49: ='Scaling Factors'!$L$17 -> 0.3723931782 | I49: 592.7891409 | J49: ='Scaling Factors'!$M$17 -> 0.607014849 | K49: 966.2685351 | L49: ='Scaling Factors'!$N$17 -> 0.607014849 | M49: 966.2685351 | N49: ='Scaling Factors'!$O$17 -> 0.607014849 | O49: 966.2685351 | P49: ='Scaling Factors'!$B$17 -> TRB Design Weight
A50: Bracket, Brake | B50: 6 | C50: 292.9705215 | D50: 9 | E50: 2636.734694 | F50: ='Scaling Factors'!$K$17 -> 0.5732928011 | G50: 1511.621018 | H50: ='Scaling Factors'!$L$17 -> 0.3723931782 | I50: 981.9020128 | J50: ='Scaling Factors'!$M$17 -> 0.607014849 | K50: 1600.537112 | L50: ='Scaling Factors'!$N$17 -> 0.607014849 | M50: 1600.537112 | N50: ='Scaling Factors'!$O$17 -> 0.607014849 | O50: 1600.537112 | P50: ='Scaling Factors'!$B$17 -> TRB Design Weight
A51: Labryinth Seal | B51: 1 | C51: 37.18820862 | D51: 13.33 | E51: 495.7188209 | F51: ='Scaling Factors'!$K$17 -> 0.5732928011 | G51: 284.1920314 | H51: ='Scaling Factors'!$L$17 -> 0.3723931782 | I51: 184.6023072 | J51: ='Scaling Factors'!$M$17 -> 0.607014849 | K51: 300.9086852 | L51: ='Scaling Factors'!$N$17 -> 0.607014849 | M51: 300.9086852 | N51: ='Scaling Factors'!$O$17 -> 0.607014849 | O51: 300.9086852 | P51: ='Scaling Factors'!$B$17 -> TRB Design Weight
A52: Labryinth Seal | B52: 1 | C52: 213.1519274 | D52: 9.12 | E52: 1943.945578 | F52: ='Scaling Factors'!$K$17 -> 0.5732928011 | G52: 1114.450006 | H52: ='Scaling Factors'!$L$17 -> 0.3723931782 | I52: 723.9120722 | J52: ='Scaling Factors'!$M$17 -> 0.607014849 | K52: 1180.003832 | L52: ='Scaling Factors'!$N$17 -> 0.607014849 | M52: 1180.003832 | N52: ='Scaling Factors'!$O$17 -> 0.607014849 | O52: 1180.003832 | P52: ='Scaling Factors'!$B$17 -> TRB Design Weight
A53: Lip Seal | B53: 1 | C53: 3.628117914 | D53: 22.64 | E53: 82.14058957 | F53: ='Scaling Factors'!$K$17 -> 0.5732928011 | G53: 47.09060868 | H53: ='Scaling Factors'!$L$17 -> 0.3723931782 | I53: 30.58859521 | J53: ='Scaling Factors'!$M$17 -> 0.607014849 | K53: 49.86055757 | L53: ='Scaling Factors'!$N$17 -> 0.607014849 | M53: 49.86055757 | N53: ='Scaling Factors'!$O$17 -> 0.607014849 | O53: 49.86055757 | P53: ='Scaling Factors'!$B$17 -> TRB Design Weight
A54: Seal Retainer | B54: 1 | C54: 7.709750567 | D54: 19.11 | E54: 147.3333333 | F54: ='Scaling Factors'!$K$17 -> 0.5732928011 | G54: 84.46513936 | H54: ='Scaling Factors'!$L$17 -> 0.3723931782 | I54: 54.86592826 | J54: ='Scaling Factors'!$M$17 -> 0.607014849 | K54: 89.43352108 | L54: ='Scaling Factors'!$N$17 -> 0.607014849 | M54: 89.43352108 | N54: ='Scaling Factors'!$O$17 -> 0.607014849 | O54: 89.43352108 | P54: ='Scaling Factors'!$B$17 -> TRB Design Weight
A55: Brake Caliper | B55: 6 | C55: 668.9342404 | D55: 11 | E55: 7358.276644 | F55: ='Scaling Factors'!$K$17 -> 0.5732928011 | G55: 4218.447028 | H55: ='Scaling Factors'!$L$17 -> 0.3723931782 | I55: 2740.172026 | J55: ='Scaling Factors'!$M$17 -> 0.607014849 | K55: 4466.583186 | L55: ='Scaling Factors'!$N$17 -> 0.607014849 | M55: 4466.583186 | N55: ='Scaling Factors'!$O$17 -> 0.607014849 | O55: 4466.583186 | P55: ='Scaling Factors'!$B$17 -> TRB Design Weight
A56: Electrical System | B56: 1 | C56: =SUMPRODUCT($B$57:$B$65,C57:C65) -> 11415.75283 | E56: =SUMPRODUCT($B$57:$B$65,E57:E65) -> 113600 | G56: =SUMPRODUCT($B$57:$B$65,G57:G65) -> 75733.33333 | I56: =SUMPRODUCT($B$57:$B$65,I57:I65) -> 47333.33333 | K56: =SUMPRODUCT($B$57:$B$65,K57:K65) -> 71000 | M56: =SUMPRODUCT($B$57:$B$65,M57:M65) -> 71000 | O56: =SUMPRODUCT($B$57:$B$65,O57:O65) -> 94666.66667
A57: Generator | B57: 1 | C57: 6100 | E57: 72000 | F57: ='Scaling Factors'!$K$3 -> 0.6666666667 | G57: =$E57*F57 -> 48000 | H57: ='Scaling Factors'!$L$3 -> 0.4166666667 | I57: =$E57*H57 -> 30000 | J57: ='Scaling Factors'!$M$3 -> 0.625 | K57: =$E57*J57 -> 45000 | L57: ='Scaling Factors'!$N$3 -> 0.625 | M57: =$E57*L57 -> 45000 | N57: ='Scaling Factors'!$O$3 -> 0.8333333333 | O57: =$E57*N57 -> 60000 | P57: ='Scaling Factors'!$B$3 -> MW Rating
A58: Contactor | B58: 1 | C58: 181.4058957 | E58: 2600 | F58: ='Scaling Factors'!$K$3 -> 0.6666666667 | G58: 1733.333333 | H58: ='Scaling Factors'!$L$3 -> 0.4166666667 | I58: 1083.333333 | J58: ='Scaling Factors'!$M$3 -> 0.625 | K58: 1625 | L58: ='Scaling Factors'!$N$3 -> 0.625 | M58: 1625 | N58: ='Scaling Factors'!$O$3 -> 0.8333333333 | O58: 2166.666667 | P58: ='Scaling Factors'!$B$3 -> MW Rating
A59: Circuit Breaker | B59: 1 | C59: 362.8117914 | E59: 6000 | F59: ='Scaling Factors'!$K$3 -> 0.6666666667 | G59: 4000 | H59: ='Scaling Factors'!$L$3 -> 0.4166666667 | I59: 2500 | J59: ='Scaling Factors'!$M$3 -> 0.625 | K59: 3750 | L59: ='Scaling Factors'!$N$3 -> 0.625 | M59: 3750 | N59: ='Scaling Factors'!$O$3 -> 0.8333333333 | O59: 5000 | P59: ='Scaling Factors'!$B$3 -> MW Rating
A60: Controller Card | B60: 1 | C60: 4.535147392 | E60: 1500 | F60: ='Scaling Factors'!$K$3 -> 0.6666666667 | G60: 1000 | H60: ='Scaling Factors'!$L$3 -> 0.4166666667 | I60: 625 | J60: ='Scaling Factors'!$M$3 -> 0.625 | K60: 937.5 | L60: ='Scaling Factors'!$N$3 -> 0.625 | M60: 937.5 | N60: ='Scaling Factors'!$O$3 -> 0.8333333333 | O60: 1250 | P60: ='Scaling Factors'!$B$3 -> MW Rating
A61: Conductors | B61: 1 | C61: 0 | E61: 4500 | F61: ='Scaling Factors'!$K$3 -> 0.6666666667 | G61: 3000 | H61: ='Scaling Factors'!$L$3 -> 0.4166666667 | I61: 1875 | J61: ='Scaling Factors'!$M$3 -> 0.625 | K61: 2812.5 | L61: ='Scaling Factors'!$N$3 -> 0.625 | M61: 2812.5 | N61: ='Scaling Factors'!$O$3 -> 0.8333333333 | O61: 3750 | P61: ='Scaling Factors'!$B$3 -> MW Rating
A62: Cabinet | B62: 1 | C62: 0 | E62: 2500 | F62: ='Scaling Factors'!$K$3 -> 0.6666666667 | G62: 1666.666667 | H62: ='Scaling Factors'!$L$3 -> 0.4166666667 | I62: 1041.666667 | J62: ='Scaling Factors'!$M$3 -> 0.625 | K62: 1562.5 | L62: ='Scaling Factors'!$N$3 -> 0.625 | M62: 1562.5 | N62: ='Scaling Factors'!$O$3 -> 0.8333333333 | O62: 2083.333333 | P62: ='Scaling Factors'!$B$3 -> MW Rating
A63: Solid State Relays | B63: 1 | C63: 0 | E63: 1500 | F63: ='Scaling Factors'!$K$3 -> 0.6666666667 | G63: 1000 | H63: ='Scaling Factors'!$L$3 -> 0.4166666667 | I63: 625 | J63: ='Scaling Factors'!$M$3 -> 0.625 | K63: 937.5 | L63: ='Scaling Factors'!$N$3 -> 0.625 | M63: 937.5 | N63: ='Scaling Factors'!$O$3 -> 0.8333333333 | O63: 1250 | P63: ='Scaling Factors'!$B$3 -> MW Rating
A64: PLC - Not Sure About The Cost | B64: 1 | C64: 0 | E64: 3000 | F64: ='Scaling Factors'!$K$3 -> 0.6666666667 | G64: 2000 | H64: ='Scaling Factors'!$L$3 -> 0.4166666667 | I64: 1250 | J64: ='Scaling Factors'!$M$3 -> 0.625 | K64: 1875 | L64: ='Scaling Factors'!$N$3 -> 0.625 | M64: 1875 | N64: ='Scaling Factors'!$O$3 -> 0.8333333333 | O64: 2500 | P64: ='Scaling Factors'!$B$3 -> MW Rating
A65: Transformer | B65: 1 | C65: 4767 | E65: 20000 | F65: ='Scaling Factors'!$K$3 -> 0.6666666667 | G65: 13333.33333 | H65: ='Scaling Factors'!$L$3 -> 0.4166666667 | I65: 8333.333333 | J65: ='Scaling Factors'!$M$3 -> 0.625 | K65: 12500 | L65: ='Scaling Factors'!$N$3 -> 0.625 | M65: 12500 | N65: ='Scaling Factors'!$O$3 -> 0.8333333333 | O65: 16666.66667 | P65: ='Scaling Factors'!$B$3 -> MW Rating
A66: Monitoring/Controls | B66: 1 | C66: =SUMPRODUCT($B$67:$B$77,C67:C77) -> 0 | E66: 0 | G66: =SUMPRODUCT($B$67:$B$77,G67:G77) -> 0 | I66: =SUMPRODUCT($B$67:$B$77,I67:I77) -> 0 | K66: =SUMPRODUCT($B$67:$B$77,K67:K77) -> 0 | M66: =SUMPRODUCT($B$67:$B$77,M67:M77) -> 0 | O66: =SUMPRODUCT($B$67:$B$77,O67:O77) -> 0
A67: Pressure Sensors | B67: 1
A68: Brake Release | B68: 1
A69: Accumulator Precharge | B69: 1
A70: System Pressure | B70: 1
A71: Charge Pump Pressure | B71: 1
A72: Filter Pressure Differential | B72: 1
A74: Temperature | B74: 1
A75: Hydraulic Oil Reservoir | B75: 1
A76: Hydraulic Oil Return | B76: 1
B77: 1

Sheet Mooring Cost
A2: System Rating | B2: kW | C2: 2400 | D2: 1770 | E2: 1114 | F2: 1500 | G2: 1500 | H2: 2000
A3: Rotor Diameter | B3: m | C3: ='Scaling Factors'!D4 -> 45.5 | D3: ='Scaling Factors'!E4 -> 35.07870629 | E3: ='Scaling Factors'!F4 -> 27.84198761 | F3: ='Scaling Factors'!G4 -> 34.9 | G3: ='Scaling Factors'!H4 -> 34.9 | H3: ='Scaling Factors'!I4 -> 32.3
A4: Mooring Cost | B4: $ | C4: 750600 | D4: =1.15*$C$4*D3/$C$3 -> 665485.4611 | E4: =1.15*$C$4*E3/$C$3 -> 528196.1602 | F4: =1.15*$C$4*F3/$C$3 -> 662095.1868 | G4: =1.15*$C$4*G3/$C$3 -> 662095.1868 | H4: =G4 -> 662095.1868

Sheet Grid Connection - MW Scale
A2: System Rating | B2: kW | C2: 2350 | D2: 1600 | E2: 1000 | F2: 750 | G2: 500 | H2: 350
A3: Low Grid Connect Cost | B3: $ | C3: =E37 -> 1177505.581 | D3: =F37 -> 872231.6717 | E3: 628498.7234 | F3: 832065.9956 | G3: 832065.9956 | H3: 1037817.447
A5: Scaled Costs, Inter array cables scale on MW Rating
A6: Electrical Collection and Transmission Systems for Offshore Wind Power - NREL 2007
A7: T&D Costs
A8: Designation | C8: 500 MW (3 MW) | D8: Per 3MW | E8: =$C$2 -> 2350 | F8: =$D$2 -> 1600 | G8: =$E$2 -> 1000 | H8: 1500 | I8: 1500 | J8: 2000 | K8: Comments
A9: Number of Turbines | C9: 167 | D9: =500/3 -> 166.6666667 | E9: 43 | F9: 63 | G9: 100 | H9: 67 | I9: 67 | J9: 50 | K9: Assume Max 50
A10: Total Site Rating | C10: 500 | D10: 500 | E10: 100 | F10: 100 | G10: 100 | H10: 100 | I10: 100 | J10: =J8*J9/1000 -> 100
A11: Inter-array cable cost: | C11: 103000000 | D11: =C11/$D$9 -> 618000 | E11: =$D11*E$9 -> 26574000 | F11: =$D11*F$9*F$8/$E$8 -> 26508255.32 | G11: =$D11*G$9*G$8/$E$8 -> 26297872.34 | H11: =$D11*H$9*H$8/$E$8 -> 26429361.7 | I11: =$D11*I$9*I$8/$E$8 -> 26429361.7 | J11: =$D11*J$9*J$8/$E$8 -> 26297872.34 | K11: Scales on MW Rating
A12: Inter-array cable shipping and installation: | C12: 36530000 | D12: 219180 | E12: =$D12*E$9 -> 9424740 | F12: =$D12*F$9 -> 13808340 | G12: =$D12*G$9 -> 21918000 | H12: =$D12*H$9 -> 14685060 | I12: =$D12*I$9 -> 14685060 | J12: =$D12*J$9 -> 10959000
A13: Transmission cable cost: | C13: 36340000 | D13: 218040 | E13: =$C13*E$10/500 -> 7268000 | F13: 7268000 | G13: 7268000 | H13: 7268000 | I13: 7268000 | J13: 7268000 | K13: Scales on Farm Size
A14: Transmission cable shipping and installation: | C14: 6830000 | D14: 40980 | E14: 1366000 | F14: =E14 -> 1366000 | G14: =F14 -> 1366000 | H14: 1366000 | I14: 1366000 | J14: 1366000
D15: 0
A16: Turbine transformer | C16: 8430000 | D16: 50580
A17: Offshore Substation w/Transformer | C17: 40520000 | D17: 243120 | E17: =10000000/10 -> 1000000 | F17: =$E17*F$10/$E$10 -> 1000000 | G17: =$E17*G$10/$E$10 -> 1000000 | H17: =$E17*H$10/$E$10 -> 1000000 | I17: 1000000 | J17: 1000000 | K17: No OS Sub Station estimated JB and other
A18: Onshore Transmission & Substation | C18: 29370000 | D18: 176220 | E18: 5000000 | F18: =E18 -> 5000000 | G18: =F18 -> 5000000 | H18: =G18*0.9 -> 4500000 | I18: 4000000 | J18: 3750000 | K18: estimated
A19: Cost Per Farm | E19: =SUM(E11:E18) -> 50632740 | F19: 54950595.32 | G19: 62849872.34 | H19: 55248421.7 | I19: 54748421.7 | J19: 50640872.34
A20: Cost Per C-Plane | E20: =E19/E9 -> 1177505.581 | F20: 872231.6717 | G20: 628498.7234 | H20: 824603.309 | I20: 817140.6224 | J20: 1012817.447
A21: (These values were based on a 500MW farm 15km from shore)
A23: High Costs, Inter array cables do not scale on MW Rating
A24: T&D Costs
A25: Designation | C25: 500 MW (3 MW) | D25: Per 3MW | E25: =$C$2 -> 2350 | F25: =$D$2 -> 1600 | G25: =$E$2 -> 1000 | H25: 1500 | I25: 1500 | J25: 2000
A26: Number of Turbines | C26: 167 | D26: =500/3 -> 166.6666667 | E26: 43 | F26: 63 | G26: 100 | H26: 67 | I26: 67 | J26: 50
A27: Total Site Rating | C27: 500 | D27: 500 | E27: 100 | F27: 100 | G27: =G25*G26/1000 -> 100 | H27: 100 | I27: 100 | J27: =J25*J26/1000 -> 100
A28: Inter-array cable cost: | C28: 103000000 | D28: =C28/$D$9 -> 618000 | E28: =$D28*E$26*E$25/$E$8 -> 26574000 | F28: 26508255.32 | G28: 26297872.34 | H28: 26429361.7 | I28: 26429361.7 | J28: =$D28*J$26*J$25/$E$8 -> 26297872.34 | K28: Scales on MW Rating
A29: Inter-array cable shipping and installation: | C29: 36530000 | D29: 219180 | E29: =$D29*E$26 -> 9424740 | F29: =$D29*F$26 -> 13808340 | G29: 21918000 | H29: 14685060 | I29: 14685060 | J29: 10959000
A30: Transmission cable cost: | C30: 36340000 | D30: 218040 | E30: =$C30*E$27/500 -> 7268000 | F30: 7268000 | G30: 7268000 | H30: 7268000 | I30: 7268000 | J30: =$C30*J$27/500 -> 7268000 | K30: Scales on Farm Size
A31: Transmission cable shipping and installation: | C31: 6830000 | D31: 40980 | E31: =$C31*E$10/500 -> 1366000 | F31: =E31 -> 1366000 | G31: =F31 -> 1366000 | H31: =G31 -> 1366000 | I31: =H31 -> 1366000 | J31: =I31 -> 1366000
D32: 0
A33: Turbine transformer | C33: 8430000 | D33: 50580
A34: Offshore Substation w/Transformer | C34: 40520000 | D34: 243120 | E34: =10000000/10 -> 1000000 | F34: =$E34*F$27/$E$27 -> 1000000 | G34: =$E34*G$27/$E$27 -> 1000000 | H34: 1000000 | I34: 1000000 | J34: 1000000 | K34: No OS Sub Station estimated JB and other
A35: Onshore Transmission & Substation | C35: 29370000 | D35: 176220 | E35: 5000000 | F35: =E35 -> 5000000 | G35: =F35 -> 5000000 | H35: =G35 -> 5000000 | I35: 5000000 | J35: 5000000 | K35: estimated
A36: Cost Per Farm | C36: =SUM(C28:C35) -> 261020000 | D36: =SUM(D28:D35) -> 1566120 | E36: =SUM(E28:E35) -> 50632740 | F36: 54950595.32 | G36: 62849872.34 | H36: 55748421.7 | I36: 55748421.7 | J36: 51890872.34
A37: Cost Per C-Plane | E37: =E36/E26 -> 1177505.581 | F37: 872231.6717 | G37: 628498.7234 | H37: 832065.9956 | I37: 832065.9956 | J37: 1037817.447
A38: (These values were based on a 500MW farm 15km from shore)

Sheet Failure Costs
A1: Component | C1: Failure Rate (months per failure) | H1: 2400 | I1: Component Cost | J1: Total Repair Cost | K1: 1600 | N1: 1000 | Q1: 750 | T1: 500 | W1: 350
B2: Ship Cost | C2: Min | D2: Mean | E2: Max | F2: Years to Min Failure | G2: % Fail by Min | H2: 43 | K2: 67 | N2: 100 | Q2: 134 | T2: 200 | W2: 267
A3: Blades | B3: =950000 -> 950000 | C3: 120 | D3: 240 | E3: 480 | F3: =C3/12 -> 10 | G3: 0.05 | H3: =$G3*H$2/$F3 -> 0.215 | I3: =B20 -> 783592 | J3: =I3+$B3 -> 1733592 | K3: =$G3*K$2/$F3 -> 0.335 | L3: =C20 -> 442882.28 | M3: =L3+$B3 -> 1392882.28 | N3: =$G3*N$2/$F3 -> 0.5 | O3: =D20 -> 229876.36 | P3: =O3+$B3 -> 1179876.36 | Q3: =$G3*Q$2/$F3 -> 0.67 | R3: =E20 -> 415103.96 | S3: =R3+$B3 -> 1365103.96 | T3: =$G3*T$2/$F3 -> 1 | U3: =F20 -> 415103.96 | V3: =U3+$B3 -> 1365103.96 | W3: =$G3*W$2/$F3 -> 1.335 | X3: =G20 -> 708231.12 | Y3: =X3+$B3 -> 1658231.12
A4: Rotor Hubs | B4: =950000 -> 950000 | C4: 240 | D4: 480 | E4: 960 | F4: =C4/12 -> 20 | G4: 0.05 | H4: 0.1075 | I4: =B20 -> 783592 | J4: =I4+$B4 -> 1733592 | K4: 0.1675 | L4: =C20 -> 442882.28 | M4: =L4+$B4 -> 1392882.28 | N4: 0.25 | O4: =D20 -> 229876.36 | P4: =O4+$B4 -> 1179876.36 | Q4: 0.335 | R4: =E20 -> 415103.96 | S4: =R4+$B4 -> 1365103.96 | T4: 0.5 | U4: =F20 -> 415103.96 | V4: =U4+$B4 -> 1365103.96 | W4: 0.6675 | X4: =G20 -> 708231.12 | Y4: =X4+$B4 -> 1658231.12
A5: Nacelle | B5: 950000 | C5: 240 | D5: 480 | E5: 960 | F5: 20 | G5: 0.05 | H5: 0.1075 | I5: =B21 -> 2950468.198 | J5: 3900468.198 | K5: 0.1675 | L5: =C21 -> 2170423.328 | M5: 3120423.328 | N5: 0.25 | O5: =D21 -> 1262774.638 | P5: 2212774.638 | Q5: 0.335 | R5: =E21 -> 1656446.142 | S5: 2606446.142 | T5: 0.5 | U5: =F21 -> 1656446.142 | V5: 2606446.142 | W5: 0.6675 | X5: =G21 -> 2024190.738 | Y5: 2974190.738
A6: Main Wing and Faring | B6: 950000 | C6: 240 | D6: 480 | E6: 960 | F6: 20 | G6: 0.05 | H6: 0.1075 | I6: =B22 -> 874500 | J6: 1824500 | K6: 0.1675 | L6: =C22 -> 519785.4958 | M6: 1469785.496 | N6: 0.25 | O6: =D22 -> 327444.3434 | P6: 1277444.343 | Q6: 0.335 | R6: =E22 -> 514502.9562 | S6: 1464502.956 | T6: 0.5 | U6: =F22 -> 514502.9562 | V6: 1464502.956 | W6: 0.6675 | X6: =G22 -> 440699.0001 | Y6: 1390699
A7: Pump | B7: 950000 | C7: 60 | D7: 120 | E7: 240 | F7: 5 | G7: 0.05 | H7: 0.43 | I7: =B23 -> 1014525.542 | J7: 1964525.542 | K7: 0.67 | L7: =C23 -> 864556.3108 | M7: 1814556.311 | N7: 1 | O7: =D23 -> 471806.4631 | P7: 1421806.463 | Q7: 1.34 | R7: =E23 -> 518298.7708 | S7: 1468298.771 | T7: 2 | U7: =F23 -> 518298.7708 | V7: 1468298.771 | W7: 2.67 | X7: =G23 -> 569249.54 | Y7: 1519249.54
A8: Electrical | B8: 950000 | C8: 60 | D8: 120 | E8: 240 | F8: 5 | G8: 0.05 | H8: 0.43 | I8: =B24 -> 113600 | J8: 1063600 | K8: 0.67 | L8: =C24 -> 75733.33333 | M8: 1025733.333 | N8: 1 | O8: =D24 -> 47333.33333 | P8: 997333.3333 | Q8: 1.34 | R8: =E24 -> 71000 | S8: 1021000 | T8: 2 | U8: =F24 -> 71000 | V8: 1021000 | W8: 2.67 | X8: =G24 -> 94666.66667 | Y8: 1044666.667
A9: Seals | B9: 950000 | C9: 60 | D9: 120 | E9: 240 | F9: 5 | G9: 0.05 | H9: 0.43 | I9: =B21 -> 2950468.198 | J9: 3900468.198 | K9: 0.67 | L9: =C21 -> 2170423.328 | M9: 3120423.328 | N9: 1 | O9: =D21 -> 1262774.638 | P9: 2212774.638 | Q9: 1.34 | R9: =E21 -> 1656446.142 | S9: 2606446.142 | T9: 2 | U9: =F21 -> 1656446.142 | V9: 2606446.142 | W9: 2.67 | X9: =G21 -> 2024190.738 | Y9: 2974190.738
A10: Generator | B10: 950000 | C10: 60 | D10: 120 | E10: 240 | F10: 5 | G10: 0.05 | H10: 0.43 | I10: =B24 -> 113600 | J10: 1063600 | K10: 0.67 | L10: =C24 -> 75733.33333 | M10: 1025733.333 | N10: 1 | O10: =D24 -> 47333.33333 | P10: 997333.3333 | Q10: 1.34 | R10: =E24 -> 71000 | S10: 1021000 | T10: 2 | U10: =F24 -> 71000 | V10: 1021000 | W10: 2.67 | X10: =G24 -> 94666.66667 | Y10: 1044666.667
A11: Hydraulic System | B11: 950000 | C11: 60 | D11: 120 | E11: 240 | F11: 5 | G11: 0.05 | H11: 0.43 | I11: =B23 -> 1014525.542 | J11: 1964525.542 | K11: 0.67 | L11: =C23 -> 864556.3108 | M11: 1814556.311 | N11: 1 | O11: =D23 -> 471806.4631 | P11: 1421806.463 | Q11: 1.34 | R11: =E23 -> 518298.7708 | S11: 1468298.771 | T11: 2 | U11: =F23 -> 518298.7708 | V11: 1468298.771 | W11: 2.67 | X11: =G23 -> 569249.54 | Y11: 1519249.54
A12: Bearings | B12: 950000 | C12: 60 | D12: 120 | E12: 240 | F12: 5 | G12: 0.05 | H12: 0.43 | I12: =B25 -> 589395.3825 | J12: 1539395.382 | K12: 0.67 | L12: =C25 -> 337896.1298 | M12: 1287896.13 | N12: 1 | O12: =D25 -> 219486.8197 | P12: 1169486.82 | Q12: 1.34 | R12: =E25 -> 357771.7491 | S12: 1307771.749 | T12: 2 | U12: =F25 -> 357771.7491 | V12: 1307771.749 | W12: 2.67 | X12: =G25 -> 357771.7491 | Y12: 1307771.749
A13: Mooring Lines & Attachments | B13: 950000 | C13: 240 | D13: 480 | E13: 960 | F13: 20 | G13: 0.05 | H13: 0.1075 | I13: =B43 -> 750600 | J13: 1700600 | K13: 0.1675 | L13: =C43 -> 665485.4611 | M13: 1615485.461 | N13: 0.25 | O13: =D43 -> 528196.1602 | P13: 1478196.16 | Q13: 0.335 | R13: =E43 -> 662095.1868 | S13: 1612095.187 | T13: 0.5 | U13: =F43 -> 662095.1868 | V13: 1612095.187 | W13: 0.6675 | X13: =G43 -> 662095.1868 | Y13: 1612095.187
A14: Grid Connect | B14: 950000 | C14: 240 | D14: 480 | E14: 960 | F14: 20 | G14: 0.05 | H14: 0.1075 | I14: =B42 -> 1177505.581 | J14: 2127505.581 | K14: 0.1675 | L14: =C42 -> 872231.6717 | M14: 1822231.672 | N14: 0.25 | O14: =D42 -> 628498.7234 | P14: 1578498.723 | Q14: 0.335 | R14: =E42 -> 832065.9956 | S14: 1782065.996 | T14: 0.5 | U14: =F42 -> 832065.9956 | V14: 1782065.996 | W14: 0.6675 | X14: =G42 -> 1037817.447 | Y14: 1987817.447
H15: =SUM(H3:H14) -> 3.3325 | K15: =SUM(K3:K14) -> 5.1925 | N15: =SUM(N3:N14) -> 7.75 | Q15: =SUM(Q3:Q14) -> 10.385 | T15: =SUM(T3:T14) -> 15.5 | W15: =SUM(W3:W14) -> 20.6925
H16: =SUMPRODUCT(J3:J14,H3:H14)/H$2 -> 151845.7711 | K16: =SUMPRODUCT(M3:M14,K3:K14)/K$2 -> 131405.4194 | N16: =SUMPRODUCT(P3:P14,N3:N14)/N$2 -> 107421.7679 | Q16: =SUMPRODUCT(S3:S14,Q3:Q14)/Q$2 -> 117829.2097 | T16: =SUMPRODUCT(V3:V14,T3:T14)/T$2 -> 117829.2097 | W16: =SUMPRODUCT(Y3:Y14,W3:W14)/W$2 -> 126446.6883
A18: ='Scaling Summary'!A1 -> C-Plane - 2400 kW | B18: ='Scaling Summary'!C1 -> 2400 Cost | C18: ='Scaling Summary'!D1 -> 1600 Cost | D18: ='Scaling Summary'!E1 -> 1000 Cost | E18: ='Scaling Summary'!F1 -> 1500 PPDC | F18: ='Scaling Summary'!G1 -> 1500 APDC | G18: ='Scaling Summary'!H1 -> 2000 APDC
A19: ='Scaling Summary'!A7 -> Blade | B19: ='Scaling Summary'!C7 -> 278496 | C19: ='Scaling Summary'!D7 -> 145205.64 | D19: ='Scaling Summary'!E7 -> 71185.68 | E19: ='Scaling Summary'!F7 -> 131316.48 | F19: ='Scaling Summary'!G7 -> 131316.48 | G19: ='Scaling Summary'!H7 -> 262632.96
A20: ='Scaling Summary'!A6 -> Rotor | B20: ='Scaling Summary'!C6 -> 783592 | C20: ='Scaling Summary'!D6 -> 442882.28 | D20: ='Scaling Summary'!E6 -> 229876.36 | E20: ='Scaling Summary'!F6 -> 415103.96 | F20: ='Scaling Summary'!G6 -> 415103.96 | G20: ='Scaling Summary'!H6 -> 708231.12
A21: Pod Total | B21: =(B27-B22)/2 -> 2950468.198 | C21: =(C27-C22)/2 -> 2170423.328 | D21: 1262774.638 | E21: 1656446.142 | F21: 1656446.142 | G21: 2024190.738
A22: ='Scaling Summary'!A4 -> Truss | B22: ='Scaling Summary'!C4 -> 874500 | C22: ='Scaling Summary'!D4 -> 519785.4958 | D22: ='Scaling Summary'!E4 -> 327444.3434 | E22: ='Scaling Summary'!F4 -> 514502.9562 | F22: ='Scaling Summary'!G4 -> 514502.9562 | G22: ='Scaling Summary'!H4 -> 440699.0001
A23: ='Scaling Summary'!A11 -> Hydraulics Package | B23: ='Scaling Summary'!C11 -> 1014525.542 | C23: ='Scaling Summary'!D11 -> 864556.3108 | D23: ='Scaling Summary'!E11 -> 471806.4631 | E23: ='Scaling Summary'!F11 -> 518298.7708 | F23: ='Scaling Summary'!G11 -> 518298.7708 | G23: ='Scaling Summary'!H11 -> 569249.54
A24: ='Scaling Summary'!A19 -> Electrical System | B24: ='Scaling Summary'!C19 -> 113600 | C24: ='Scaling Summary'!D19 -> 75733.33333 | D24: ='Scaling Summary'!E19 -> 47333.33333 | E24: ='Scaling Summary'!F19 -> 71000 | F24: ='Scaling Summary'!G19 -> 71000 | G24: ='Scaling Summary'!H19 -> 94666.66667
A25: ='Scaling Summary'!A18 -> Bearings & Seals Package | B25: ='Scaling Summary'!C18 -> 589395.3825 | C25: ='Scaling Summary'!D18 -> 337896.1298 | D25: ='Scaling Summary'!E18 -> 219486.8197 | E25: ='Scaling Summary'!F18 -> 357771.7491 | F25: ='Scaling Summary'!G18 -> 357771.7491 | G25: ='Scaling Summary'!H18 -> 357771.7491
A27: ='Scaling Summary'!A3 -> System Total | B27: ='Scaling Summary'!C3 -> 6775436.396 | C27: ='Scaling Summary'!D3 -> 4860632.151 | D27: ='Scaling Summary'!E3 -> 2852993.62 | E27: ='Scaling Summary'!F3 -> 3827395.24 | F27: ='Scaling Summary'!G3 -> 3827395.24 | G27: ='Scaling Summary'!H3 -> 4489080.476
A28: ='Scaling Summary'!A5 -> Nacelle Structure | B28: ='Scaling Summary'!C5 -> 314178.2738 | C28: ='Scaling Summary'!D5 -> 314178.2738 | D28: ='Scaling Summary'!E5 -> 205747.5861 | E28: ='Scaling Summary'!F5 -> 205747.5861 | F28: ='Scaling Summary'!G5 -> 205747.5861 | G28: ='Scaling Summary'!H5 -> 205747.5861
A29: ='Scaling Summary'!A8 -> Rotor Hub | B29: ='Scaling Summary'!C8 -> 226600 | C29: ='Scaling Summary'!D8 -> 152471 | D29: ='Scaling Summary'!E8 -> 87505 | E29: ='Scaling Summary'!F8 -> 152471 | F29: ='Scaling Summary'!G8 -> 152471 | G29: ='Scaling Summary'!H8 -> 182965.2
A30: ='Scaling Summary'!A9 -> Tail Cone | B30: ='Scaling Summary'!C9 -> 135177 | C30: ='Scaling Summary'!D9 -> 135177 | D30: ='Scaling Summary'!E9 -> 88524.07619 | E30: ='Scaling Summary'!F9 -> 88524.07619 | F30: ='Scaling Summary'!G9 -> 88524.07619 | G30: ='Scaling Summary'!H9 -> 88524.07619
A31: ='Scaling Summary'!A10 -> Drive Train (Internals) | B31: ='Scaling Summary'!C10 -> 1717520.924 | C31: ='Scaling Summary'!D10 -> 1278185.774 | D31: ='Scaling Summary'!E10 -> 738626.6161 | E31: ='Scaling Summary'!F10 -> 947070.5198 | F31: ='Scaling Summary'!G10 -> 947070.5198 | G31: ='Scaling Summary'!H10 -> 1021687.956
A32: ='Scaling Summary'!A12 -> Low Speed Pump - CBM 6000 | B32: ='Scaling Summary'!C12 -> 309400 | C32: ='Scaling Summary'!D12 -> 309400 | D32: ='Scaling Summary'!E12 -> 154700 | E32: ='Scaling Summary'!F12 -> 154700 | F32: ='Scaling Summary'!G12 -> 154700 | G32: ='Scaling Summary'!H12 -> 154700
A33: ='Scaling Summary'!A13 -> High Speed Variable Pump - A4VS 1000 | B33: ='Scaling Summary'!C13 -> 96800 | C33: ='Scaling Summary'!D13 -> 51200 | D33: ='Scaling Summary'!E13 -> 36800 | E33: ='Scaling Summary'!F13 -> 51200 | F33: ='Scaling Summary'!G13 -> 51200 | G33: ='Scaling Summary'!H13 -> 66560
A34: ='Scaling Summary'!A14 -> High Speed Fixed Pump - A4FM 1000 | B34: ='Scaling Summary'!C14 -> 50769.23077 | C34: ='Scaling Summary'!D14 -> 25384.61538 | D34: ='Scaling Summary'!E14 -> 19038.46154 | E34: ='Scaling Summary'!F14 -> 25384.61538 | F34: ='Scaling Summary'!G14 -> 25384.61538 | G34: ='Scaling Summary'!H14 -> 33000
A35: ='Scaling Summary'!A15 -> Charge Pump - A11/190 | B35: ='Scaling Summary'!C15 -> 2650 | C35: ='Scaling Summary'!D15 -> 2650 | D35: ='Scaling Summary'!E15 -> 2650 | E35: ='Scaling Summary'!F15 -> 2650 | F35: ='Scaling Summary'!G15 -> 2650 | G35: ='Scaling Summary'!H15 -> 2650
A36: ='Scaling Summary'!A16 -> Hex - Heat Exchanger | B36: ='Scaling Summary'!C16 -> 24000 | C36: ='Scaling Summary'!D16 -> 16000 | D36: ='Scaling Summary'!E16 -> 10000 | E36: ='Scaling Summary'!F16 -> 15000 | F36: ='Scaling Summary'!G16 -> 15000 | G36: ='Scaling Summary'!H16 -> 20000
A37: ='Scaling Summary'!A17 -> Balance of Hydraulic System | B37: ='Scaling Summary'!C17 -> 65000 | C37: ='Scaling Summary'!D17 -> 65000 | D37: ='Scaling Summary'!E17 -> 32500 | E37: ='Scaling Summary'!F17 -> 32500 | F37: ='Scaling Summary'!G17 -> 32500 | G37: ='Scaling Summary'!H17 -> 32500
A38: ='Scaling Summary'!A20 -> Monitoring/Controls | B38: ='Scaling Summary'!C20 -> 0 | C38: ='Scaling Summary'!D20 -> 0 | D38: ='Scaling Summary'!E20 -> 0 | E38: ='Scaling Summary'!F20 -> 0 | F38: ='Scaling Summary'!G20 -> 0 | G38: ='Scaling Summary'!H20 -> 0
A39: ='Scaling Summary'!A21 -> 0 | B39: ='Scaling Summary'!C21 -> 0 | C39: ='Scaling Summary'!D21 -> 0 | D39: ='Scaling Summary'!E21 -> 0 | E39: ='Scaling Summary'!F21 -> 0 | F39: ='Scaling Summary'!G21 -> 0 | G39: ='Scaling Summary'!H21 -> 0
A40: ='Scaling Summary'!A22 -> Additional CAPEX | B40: ='Scaling Summary'!C22 -> 0 | C40: ='Scaling Summary'!D22 -> 0 | D40: ='Scaling Summary'!E22 -> 0 | E40: ='Scaling Summary'!F22 -> 0 | F40: ='Scaling Summary'!G22 -> 0 | G40: ='Scaling Summary'!H22 -> 0
A41: ='Scaling Summary'!A23 -> Installation | B41: ='Scaling Summary'!C23 -> 1325516.006 | C41: ='Scaling Summary'!D23 -> 1218110.973 | D41: ='Scaling Summary'!E23 -> 888449.681 | E41: ='Scaling Summary'!F23 -> 1164951.852 | F41: ='Scaling Summary'!G23 -> 1164951.852 | G41: ='Scaling Summary'!H23 -> 1206054.024
A42: ='Scaling Summary'!A24 -> Grid Connection | B42: ='Scaling Summary'!C24 -> 1177505.581 | C42: ='Scaling Summary'!D24 -> 872231.6717 | D42: ='Scaling Summary'!E24 -> 628498.7234 | E42: ='Scaling Summary'!F24 -> 832065.9956 | F42: ='Scaling Summary'!G24 -> 832065.9956 | G42: ='Scaling Summary'!H24 -> 1037817.447
A43: ='Scaling Summary'!A25 -> Mooring | B43: ='Scaling Summary'!C25 -> 750600 | C43: ='Scaling Summary'!D25 -> 665485.4611 | D43: ='Scaling Summary'!E25 -> 528196.1602 | E43: ='Scaling Summary'!F25 -> 662095.1868 | F43: ='Scaling Summary'!G25 -> 662095.1868 | G43: ='Scaling Summary'!H25 -> 662095.1868

Sheet Install, Asm, O&M
A1: Installation cost
A2: The current estimation of installation cost is a fixed percentage of the CAPEX for the drivetrain and platform.
C3: 2350 | D3: 1600 | E3: 1000 | F3: 1500 | G3: 1500 | H3: 2000
A4: Mob & Demob [$] | C4: 1580000 | D4: 1580000 | E4: 1580000 | F4: 1580000 | G4: 1580000 | H4: 1580000
A5: Number of C-Planes, # | C5: =ROUND(100/(C3/1000), 0) -> 43 | D5: 63 | E5: 100 | F5: 67 | G5: 67 | H5: 50
A6: Installation of C-Planes and anchors [$] | C6: 950000 | D6: 950000 | E6: 730000 | F6: 950000 | G6: 950000 | H6: 950000
A7: Total Installation cost ($/farm) | C7: =C4+C6*C5 -> 42430000 | D7: 61430000 | E7: 74580000 | F7: 65230000 | G7: 65230000 | H7: 49080000
A9: Installation cost ($/C-Plane): | C9: =C7/C5 -> 986744.186 | D9: 975079.3651 | E9: 745800 | F9: 973582.0896 | G9: 973582.0896 | H9: 981600
A11: Assembly cost
A12: The current estimation of installation cost is a fixed percentage of the CAPEX for the drivetrain and platform.
C13: =C$3 -> 2350 | D13: =D$3 -> 1600 | E13: 1000 | F13: 1500 | G13: 1500 | H13: 2000
A14: Cost of Platform and Drivetrain | C14: ='BOM Cost'!E3 -> 6775436.396 | D14: ='BOM Cost'!G3 -> 4860632.151 | E14: ='BOM Cost'!I3 -> 2852993.62 | F14: ='BOM Cost'!K3 -> 3827395.24 | G14: ='BOM Cost'!M3 -> 3827395.24 | H14: ='BOM Cost'!O3 -> 4489080.476
A15: Assembly % of Cost | C15: 0.05 | D15: 0.05 | E15: 0.05 | F15: 0.05 | G15: 0.05 | H15: 0.05
A16: Assembly cost ($/C-Plane): | C16: =C14*C15 -> 338771.8198 | D16: 243031.6076 | E16: 142649.681 | F16: 191369.762 | G16: 191369.762 | H16: 224454.0238
A18: 5 year Maintenance
A19: The current estimation of installation cost is a fixed percentage of the CAPEX for the drivetrain and platform.
C20: =C$3 -> 2350 | D20: =D$3 -> 1600 | E20: 1000 | F20: 1500 | G20: 1500 | H20: 2000 | I20: Comments
A21: Number of C-Planes, # | C21: =C5 -> 43 | D21: 63 | E21: 100 | F21: 67 | G21: 67 | H21: 50
A22: Installation cost ($/C-Plane): | C22: 950000 | D22: 950000 | E22: 730000 | F22: 950000 | G22: 950000 | H22: 950000 | I22: From Install Cost
A23: Mooring Refurbisment | C23: ='Mooring Cost'!C4*0.2 -> 150120 | D23: ='Mooring Cost'!D4*0.2 -> 133097.0922 | E23: ='Mooring Cost'!E4*0.2 -> 105639.232 | F23: ='Mooring Cost'!F4*0.2 -> 132419.0374 | G23: ='Mooring Cost'!G4*0.2 -> 132419.0374 | H23: ='Mooring Cost'!H4*0.2 -> 132419.0374 | I23: 20% Mooring Cost
A24: Parts Refurbisment
A25: Hydraulic System Overhaul (seals, etc.) | C25: =0.2*2*SUM('BOM Cost'!E27,'BOM Cost'!E31,'BOM Cost'!E32) -> 182787.6923 | D25: =0.2*(2*SUM('BOM Cost'!G27,'BOM Cost'!G31,'BOM Cost'!G32)) -> 154393.8462 | E25: =0.2*(2*SUM('BOM Cost'!I27,'BOM Cost'!I31,'BOM Cost'!I32)) -> 84215.38462 | F25: =0.2*(2*SUM('BOM Cost'!K27,'BOM Cost'!K31,'BOM Cost'!K32)) -> 92513.84615 | G25: =0.2*(2*SUM('BOM Cost'!M27,'BOM Cost'!M31,'BOM Cost'!M32)) -> 92513.84615 | H25: =0.2*(2*SUM('BOM Cost'!O27,'BOM Cost'!O31,'BOM Cost'!O32)) -> 101704 | I25: 20% Pump Cost
A26: Hydraulic Oil and Filters | C26: =0.2*SUM('BOM Cost'!E36) -> 13000 | D26: =0.2*SUM('BOM Cost'!G36) -> 13000 | E26: =0.2*SUM('BOM Cost'!I36) -> 6500 | F26: =0.2*SUM('BOM Cost'!K36) -> 6500 | G26: =0.2*SUM('BOM Cost'!M36) -> 6500 | H26: =0.2*SUM('BOM Cost'!O36) -> 6500 | I26: BOM Cost
A27: Cleaning and Painting | C27: =10000+(5*3*8*80) -> 19600 | D27: =C27*'Scaling Factors'!K22 -> 19600 | E27: =D27*'Scaling Factors'!L22 -> 15680 | F27: =D27*'Scaling Factors'!M22 -> 15680 | G27: =F27*'Scaling Factors'!N22 -> 12544 | H27: =G27*'Scaling Factors'!O22 -> 10035.2 | I27: Estimated and Scaled on Nacelle Volume
A28: Dissassebly and Reassembly | C28: =C16 -> 338771.8198 | D28: 243031.6076 | E28: 142649.681 | F28: 191369.762 | G28: 191369.762 | H28: 224454.0238 | I28: Assembly Cost
A29: Misc Parts Replacement (5%) | C29: =C14*0.05 -> 338771.8198 | D29: 243031.6076 | E29: 142649.681 | F29: 191369.762 | G29: 191369.762 | H29: 224454.0238 | I29: Misc 5% of BOM Parts Replacement
A31: 5yr Overhaul Total Cost | C31: =SUM(C22:C29) -> 1993051.332 | D31: 1756154.154 | E31: 1227333.979 | F31: 1579852.408 | G31: 1576716.408 | H31: 1649566.285 | I31: Occurs every 5 years
A32: Yearly Cost | C32: =C31/5 -> 398610.2664 | D32: 351230.8307 | E32: 245466.7957 | F32: 315970.4815 | G32: 315343.2815 | H32: 329913.257 | I32: Divide by 5
A33: Tax Adjusted Cost | C33: =C32*$J$33 -> 239166.1598 | D33: =D32*$J$33 -> 210738.4984 | E33: 147280.0774 | F33: 189582.2889 | G33: 189205.9689 | H33: 197947.9542 | I33: 40% Tax Rate | J33: 0.6
A35: Failure cost
A36: The current estimation of installation cost is a fixed percentage of the CAPEX for the drivetrain and platform.
C37: =C$3 -> 2350 | D37: =D$3 -> 1600 | E37: 1000 | F37: 1500 | G37: 1500 | H37: 2000
A38: Remove and Replace [$] | C38: 950000 | D38: 950000 | E38: 950000 | F38: 950000 | G38: 950000 | H38: 950000 | I38: 2 days all ships to remove and install
A39: Yearly Failure Rate | C39: 0.05855245766 | D39: =$C$39 -> 0.05855245766 | E39: =$C$39 -> 0.05855245766 | F39: 0.05855245766 | G39: 0.05855245766 | H39: 0.05855245766 | I39: Constant failure rate
A40: Number of Failures per year, #/yr | C40: =C39*C21 -> 2.517755679 | D40: 3.688804832 | E40: 5.855245766 | F40: 3.923014663 | G40: 3.923014663 | H40: 2.927622883 | I40: Failure rate * units per farm
A41: Average Cost of Failure | C41: =J41*('BOM Cost'!E8+'BOM Cost'!E18+'BOM Cost'!E22+'BOM Cost'!E25) -> 1475234.099 | D41: =J41*('BOM Cost'!G8+'BOM Cost'!G18+'BOM Cost'!G22+'BOM Cost'!G25) -> 1085211.664 | E41: =J41*('BOM Cost'!I8+'BOM Cost'!I18+'BOM Cost'!I22+'BOM Cost'!I25) -> 631387.3192 | F41: =J41*('BOM Cost'!K8+'BOM Cost'!K18+'BOM Cost'!K22+'BOM Cost'!K25) -> 828223.0711 | G41: =J41*('BOM Cost'!M8+'BOM Cost'!M18+'BOM Cost'!M22+'BOM Cost'!M25) -> 828223.0711 | H41: =J41*('BOM Cost'!O8+'BOM Cost'!O18+'BOM Cost'!O22+'BOM Cost'!O25) -> 1012095.369 | I41: 1/2 BOM cost of single power pod | J41: 0.5
A42: Number of days OOS | C42: 7 | D42: 7 | E42: 7 | F42: 7 | G42: 7 | H42: 7
A43: Liquidated Damages | C43: =C42*C37*0.9*24*0.12 -> 42638.4 | D43: =D42*D37*0.9*24*0.12 -> 29030.4 | E43: 18144 | F43: 27216 | G43: 27216 | H43: 36288
A44: Total LRC cost ($/farm) | C44: =C40*(C38+C41+C43) -> 6213500 | D44: =D40*(D38+D41+D43) -> 7614586.101 | E44: 9365648.984 | F44: 7082763.949 | G44: 7082763.949 | H44: 5850512.88
A46: LRC Cost ($/C-Plane/yr): | C46: =C44/C5 -> 144500 | D46: 120866.446 | E46: 93656.48984 | F46: 105712.8948 | G46: 105712.8948 | H46: 117010.2576 | I46: Asssumed 144k baseline to determine failure rate
A48: Total OPEX | C48: =C33+C46 -> 383666.1598 | D48: 331604.9445 | E48: 240936.5673 | F48: 295295.1837 | G48: 294918.8637 | H48: 314958.2118

Sheet 7.2 Mooring Installation costs
A1: AQUANTIS - PRELIMINARY INSTALLATION ESTIMATE - June 22, 2011
A2: The following estimate is for the installation of one C-Plane. For multiple C-Plane arrays, efficiencies can be expected. Mobilization of AHTS and Ocean Tugs is assumed from Port Fourchon, LA. Assumes simultaneous installation of C-Plane and rear Anchors. Assumes the C-Plane is transported via submersible barge fom Ft. Lauderdale. (Questionable, this assumption may be invalid, as the port facilities in the area typically do not handle operations such as this.) This is a preliminary estimate and may not reflect all costs associated with the installation of the C-Plane and Anchoring system. This estimate includes the connection of the powercable to the C-Plane but does not include installation of the power cable and junction box at the sea floor. | G2: Installation Cost
A3: EQUIPMENT LIST | B3: Quantity or Days | C3: Rent Equipment
C4: Cost (USD) | D4: Unit | E4: Estimated Cost | F4: Estimated Cost
A5: Mobilization | F5: Utilizing Local Assets, No Mob/Demob
A6: Anchor Handling Tug #1 mobilized from Port Fourchon, LA | B6: 3 | C6: 150000 | D6: day | E6: =B6*C6 -> 450000
A7: Ocean going tug #1, mobilized from Port Fourchon, LA | B7: 3 | C7: 20000 | D7: day | E7: =B7*C7 -> 60000
A8: Ocean going tug #2, mobilized at port Fourchon, LA for towing transport Barge (assuming 5 knts speed, 800 nm) | B8: 8 | C8: 20000 | D8: day | E8: =B8*C8 -> 160000
A9: Semi-Submersible 350 ft Transport/deployment Barge for loadout and installation of C-Plane towed from Port Fourchon, LA (Availabillity and daily rate currently unkown, likely will need delivered from GOM) | B9: 8 | C9: 15000 | D9: day | E9: =B9*C9 -> 120000
A10: Loadout of Anchors & Travel to site
A11: Anchor Handling Tug arrives at Local Port, Anchors and mooring lines are loaded on to vessel and lashed down for deployement to site | B11: 1 | C11: 150000 | D11: day | E11: =B11*C11 -> 150000 | F11: =E11 -> 150000
A12: Offshore Installation
A13: AHT #1 travels to site, installs two FWD anchors, conducts pull tests and returns to port for rear anchor | B13: 1 | C13: 150000 | D13: day | E13: =B13*C13 -> 150000 | F13: =E13 -> 150000
A14: Semi-Submersible Installation of Cplane | B14: 2 | C14: 15000 | D14: day | E14: =B14*C14 -> 30000 | F14: =B14*C14 -> 30000
A15: Ocean going tug #1 assists in tow out of C-Plane, Ocean going tug #1 assists with lowering of C-Plane / station keeping for transport barge | B15: 2 | C15: 20000 | D15: day | E15: =B15*C15 -> 40000 | F15: =E15 -> 40000
A16: Ocean going tug #2 assists in tow out of C-Plane ( est. 9 hrs), Ocean going tug #2 assists with lowering of C-Plane / station keeping for transport barge during installation | B16: 2 | C16: 20000 | D16: day | E16: =B16*C16 -> 40000 | F16: =E16 -> 40000
A17: AHT #1 loads rear anchor, returns to site, deploys anchor and assists in lowering C-Plane | B17: 2 | C17: 150000 | D17: day | E17: =B17*C17 -> 300000 | F17: =E17 -> 300000
A18: Demobilization
A19: Anchor Handling Tug #1 returns to Port Fourchon, LA | B19: 3 | C19: 150000 | D19: day | E19: =B19*C19 -> 450000
A20: Ocean going tug #1,returns to Port Fourchon | B20: 3 | C20: 20000 | D20: day | E20: =B20*C20 -> 60000
A21: Ocean going tug #1, tows submersible barge to Port Fourchon | B21: 8 | C21: 20000 | D21: day | E21: =B21*C21 -> 160000
A22: Submersible Transport Barge towed to Port Fourchon, LA (Availabillity and daily rate currently unkown) | B22: 8 | C22: 15000 | D22: day | E22: =B22*C22 -> 120000
A23: Miscellaneous
A24: Fuel and Lube for AHTs & Tugs (estimated based on June 16, 2011 ave cost per MT of marine grade fuel $1060) www.bunkerindex.com | B24: 1 | C24: 170000 | D24: LS | E24: =B24*C24 -> 170000 | F24: =E24 -> 170000
A25: Port equipment staging, assembly, and loadout lease | B25: ? | D25: day | F25: =E25 -> 0
A26: Loadout of C-plane onto barge | B26: 1 | D26: LS | E26: 20000 | F26: =E26 -> 20000
A27: Preparation of barge for towing (guess) | B27: 1 | C27: 50000 | D27: LS | E27: =B27*C27 -> 50000 | F27: =E27 -> 50000
A28: Total Estimate | E28: 2480000 | F28: =SUM(F11:F27) -> 950000
A30: Subtotals
A31: Total Mob & Demob | E31: =SUM(E19:E22,E6:E9) -> 1580000 | F31: =SUM(F19:F22,F6:F9) -> 0
A32: Total Installation and anchor loadout | E32: =SUM(E11:E17) -> 710000 | F32: =SUM(F11:F17) -> 710000
A33: Vessel Fuel, C-plane Loadout | E33: =SUM(E24:E27) -> 240000 | F33: =SUM(F24:F27) -> 240000

Sheet Mooring Installation Scaling
A1: EQUIPMENT LIST | B1: Quantity or Days | C1: Rent Equipment | G1: Turbine Rating | J1: 2400 | L1: 1600 | N1: 1000 | P1: 750 | R1: 500 | T1: 350 | W1: Turbine Rating | Z1: 2400 | AB1: 1600 | AD1: 1000 | AF1: 750 | AH1: 500 | AJ1: 350
C2: Cost (USD) | D2: Unit | E2: Estimated Cost | G2: Total Install Days | J2: =J4+J6+J7 -> 4 | L2: 4 | N2: 3 | P2: 3 | R2: 2 | T2: 2 | W2: Total Install Days | Z2: =Z4+Z6+Z7 -> 2 | AB2: 4 | AD2: 3 | AF2: 3 | AH2: 2 | AJ2: 2
A3: Loadout of Anchors & Travel to site | G3: Loadout of Anchors & Travel to site | H3: Cost (USD) | I3: Unit | J3: Days | K3: Cost | L3: Days | M3: Cost | N3: Days | O3: Cost | P3: Days | Q3: Cost | R3: Days | S3: Cost | T3: Days | U3: Cost | W3: Loadout of Anchors & Travel to site | X3: Cost (USD) | Y3: Unit | Z3: Days | AA3: Cost | AB3: Days | AC3: Cost | AD3: Days | AE3: Cost | AF3: Days | AG3: Cost | AH3: Days | AI3: Cost | AJ3: Days | AK3: Cost
A4: Anchor Handling Tug arrives at Local Port, Anchors and mooring lines are loaded on to vessel and lashed down for deployement to site | B4: 1 | C4: 150000 | D4: day | E4: =B4*C4 -> 150000 | G4: Anchor Handling Tug arrives at Local Port, Anchors and mooring lines are loaded on to vessel and lashed down for deployement to site | H4: 150000 | I4: day | J4: 1 | K4: =J4*$C4 -> 150000 | L4: =$J4*L$2/$J$2 -> 1 | M4: =L4*$C4 -> 150000 | N4: =$J4*N$2/$J$2 -> 0.75 | O4: =N4*$C4 -> 112500 | P4: =$J4*P$2/$J$2 -> 0.75 | Q4: =P4*$C4 -> 112500 | R4: =$J4*R$2/$J$2 -> 0.5 | S4: =R4*$C4 -> 75000 | T4: =$J4*T$2/$J$2 -> 0.5 | U4: =T4*$C4 -> 75000
A5: Offshore Installation | G5: Offshore Installation | J5: Days | K5: Cost | L5: Days | M5: Cost | N5: Days | O5: Cost | P5: Days | Q5: Cost | R5: Days | S5: Cost | T5: Days | U5: Cost | W5: Offshore Installation | Z5: Days | AA5: Cost | AB5: Days | AC5: Cost | AD5: Days | AE5: Cost | AF5: Days | AG5: Cost | AH5: Days | AI5: Cost | AJ5: Days | AK5: Cost
A6: AHT #1 travels to site, installs two FWD anchors, conducts pull tests and returns to port for rear anchor | B6: 1 | C6: 150000 | D6: day | E6: =B6*C6 -> 150000 | G6: AHT #1 travels to site, installs two FWD anchors, conducts pull tests and returns to port for rear anchor | H6: 150000 | I6: day | J6: 1 | K6: =J6*$C6 -> 150000 | L6: =$J6*L$2/$J$2 -> 1 | M6: =L6*$C6 -> 150000 | N6: =$J6*N$2/$J$2 -> 0.75 | O6: =N6*$C6 -> 112500 | P6: =$J6*P$2/$J$2 -> 0.75 | Q6: =P6*$C6 -> 112500 | R6: =$J6*R$2/$J$2 -> 0.5 | S6: =R6*$C6 -> 75000 | T6: =$J6*T$2/$J$2 -> 0.5 | U6: =T6*$C6 -> 75000 | W6: AHT #1 travels to site, installs two FWD anchors, conducts pull tests and returns to port for rear anchor | X6: 150000 | Y6: day | Z6: 1 | AA6: =Z6*$C6 -> 150000 | AB6: 1 | AC6: =AB6*$C6 -> 150000 | AD6: 1 | AE6: =AD6*$C6 -> 150000 | AF6: 1 | AG6: =AF6*$C6 -> 150000 | AH6: 1 | AI6: =AH6*$C6 -> 150000 | AJ6: 1 | AK6: =AJ6*$C6 -> 150000
A7: Semi-Submersible Installation of Cplane | B7: 2 | C7: 15000 | D7: day | E7: =B7*C7 -> 30000 | G7: Semi-Submersible Installation of Cplane | H7: 15000 | I7: day | J7: 2 | K7: =J7*$C7 -> 30000 | L7: =$J7*L$2/$J$2 -> 2 | M7: 30000 | N7: 1.5 | O7: =N7*$C7 -> 22500 | P7: 1.5 | Q7: =P7*$C7 -> 22500 | R7: 1 | S7: =R7*$C7 -> 15000 | T7: 1 | U7: 15000 | W7: Semi-Submersible Installation of Cplane | X7: 15000 | Y7: day | Z7: 1 | AA7: =Z7*$C7 -> 15000 | AB7: 1 | AC7: =AB7*$C7 -> 15000 | AD7: 1 | AE7: =AD7*$C7 -> 15000 | AF7: 1 | AG7: =AF7*$C7 -> 15000 | AH7: 1 | AI7: =AH7*$C7 -> 15000 | AJ7: 1 | AK7: =AJ7*$C7 -> 15000
A8: Ocean going tug #1 assists in tow out of C-Plane, Ocean going tug #1 assists with lowering of C-Plane / station keeping for transport barge | B8: 2 | C8: 20000 | D8: day | E8: =B8*C8 -> 40000 | G8: Ocean going tug #1 assists in tow out of C-Plane, Ocean going tug #1 assists with lowering of C-Plane / station keeping for transport barge | H8: 20000 | I8: day | J8: =J7 -> 2 | K8: 40000 | L8: 2 | M8: 40000 | N8: 1.5 | O8: 30000 | P8: 1.5 | Q8: 30000 | R8: 1 | S8: 20000 | T8: 1 | U8: 20000 | W8: Ocean going tug #1 assists in tow out of C-Plane, Ocean going tug #1 assists with lowering of C-Plane / station keeping for transport barge | X8: 20000 | Y8: day | Z8: =Z7 -> 1 | AA8: 20000 | AB8: =AB7 -> 1 | AC8: 20000 | AD8: =AD7 -> 1 | AE8: 20000 | AF8: =AF7 -> 1 | AG8: 20000 | AH8: =AH7 -> 1 | AI8: 20000 | AJ8: =AJ7 -> 1 | AK8: 20000
A9: Ocean going tug #2 assists in tow out of C-Plane ( est. 9 hrs), Ocean going tug #2 assists with lowering of C-Plane / station keeping for transport barge during installation | B9: 2 | C9: 20000 | D9: day | E9: =B9*C9 -> 40000 | G9: Ocean going tug #2 assists in tow out of C-Plane ( est. 9 hrs), Ocean going tug #2 assists with lowering of C-Plane / station keeping for transport barge during installation | H9: 20000 | I9: day | J9: =J8 -> 2 | K9: 40000 | L9: 2 | M9: 40000 | N9: 1.5 | O9: 30000 | P9: 1.5 | Q9: 30000 | R9: 1 | S9: 20000 | T9: 1 | U9: 20000 | W9: Ocean going tug #2 assists in tow out of C-Plane ( est. 9 hrs), Ocean going tug #2 assists with lowering of C-Plane / station keeping for transport barge during installation | X9: 20000 | Y9: day | Z9: =Z8 -> 1 | AA9: 20000 | AB9: 1 | AC9: 20000 | AD9: =AD8 -> 1 | AE9: 20000 | AF9: =AF8 -> 1 | AG9: 20000 | AH9: =AH8 -> 1 | AI9: 20000 | AJ9: =AJ8 -> 1 | AK9: 20000
A10: AHT #1 loads rear anchor, returns to site, deploys anchor and assists in lowering C-Plane | B10: 2 | C10: 150000 | D10: day | E10: =B10*C10 -> 300000 | G10: AHT #1 loads rear anchor, returns to site, deploys anchor and assists in lowering C-Plane | H10: 150000 | I10: day | J10: 2 | K10: 300000 | L10: 2 | M10: 300000 | N10: 1.5 | O10: 225000 | P10: 1.5 | Q10: 225000 | R10: 1 | S10: 150000 | T10: 1 | U10: 150000 | W10: AHT #1 loads rear anchor, returns to site, deploys anchor and assists in lowering C-Plane | X10: 150000 | Y10: day | Z10: 1 | AA10: 150000 | AB10: 1 | AC10: 150000 | AD10: =AD9 -> 1 | AE10: 150000 | AF10: =AF9 -> 1 | AG10: 150000 | AH10: =AH9 -> 1 | AI10: 150000 | AJ10: =AJ9 -> 1 | AK10: 150000
A11: Miscellaneous | G11: Miscellaneous | J11: QTY | K11: Cost | L11: QTY | M11: Cost | N11: QTY | O11: Cost | P11: QTY | Q11: Cost | R11: QTY | S11: Cost | T11: QTY | U11: Cost | W11: Miscellaneous | Z11: QTY | AA11: Cost | AB11: QTY | AC11: Cost | AD11: QTY | AE11: Cost | AF11: QTY | AG11: Cost | AH11: QTY | AI11: Cost | AJ11: QTY | AK11: Cost
A12: Fuel and Lube for AHTs & Tugs (estimated based on June 16, 2011 ave cost per MT of marine grade fuel $1060) www.bunkerindex.com | B12: 1 | C12: 170000 | D12: LS | E12: =B12*C12 -> 170000 | G12: Fuel and Lube for AHTs & Tugs (estimated based on June 16, 2011 ave cost per MT of marine grade fuel $1060) www.bunkerindex.com | H12: 170000 | I12: Ea | J12: 1 | K12: =$E$12*(J4+J6+J7)/($J$4+$J$6+$J$7) -> 170000 | L12: 1 | M12: =$E$12*(L4+L6+L7)/($J$4+$J$6+$J$7) -> 170000 | N12: 1 | O12: =$E$12*(N4+N6+N7)/($J$4+$J$6+$J$7) -> 127500 | P12: 1 | Q12: =$E$12*(P4+P6+P7)/($J$4+$J$6+$J$7) -> 127500 | R12: 1 | S12: =$E$12*(R4+R6+R7)/($J$4+$J$6+$J$7) -> 85000 | T12: 1 | U12: =$E$12*(T4+T6+T7)/($J$4+$J$6+$J$7) -> 85000 | W12: Fuel and Lube for AHTs & Tugs (estimated based on June 16, 2011 ave cost per MT of marine grade fuel $1060) www.bunkerindex.com | X12: 170000 | Y12: Ea | Z12: 1 | AA12: =$E$12*(Z4+Z6+Z7)/($J$4+$J$6+$J$7) -> 85000 | AB12: 1 | AC12: =$E$12*(AB4+AB6+AB7)/($J$4+$J$6+$J$7) -> 85000 | AD12: 1 | AE12: =$E$12*(AD4+AD6+AD7)/($J$4+$J$6+$J$7) -> 85000 | AF12: 1 | AG12: =$E$12*(AF4+AF6+AF7)/($J$4+$J$6+$J$7) -> 85000 | AH12: 1 | AI12: =$E$12*(AH4+AH6+AH7)/($J$4+$J$6+$J$7) -> 85000 | AJ12: 1 | AK12: =$E$12*(AJ4+AJ6+AJ7)/($J$4+$J$6+$J$7) -> 85000
A13: Port equipment staging, assembly, and loadout lease | B13: ? | D13: day | G13: Port equipment staging, assembly, and loadout lease | I13: day | W13: Port equipment staging, assembly, and loadout lease | Y13: day
A14: Loadout of C-plane onto barge | B14: 1 | D14: LS | E14: 20000 | G14: Loadout of C-plane onto barge | I14: Ea | J14: 1 | K14: =E14 -> 20000 | L14: 1 | M14: =$K14*1/1 -> 20000 | N14: 1 | O14: =$K14*1/1 -> 20000 | Q14: =$K14*1/1 -> 20000 | S14: =$K14*1/1 -> 20000 | U14: =$K14*1/1 -> 20000 | W14: Loadout of C-plane onto barge | Y14: Ea | Z14: 1 | AA14: =U14 -> 20000 | AB14: 1 | AC14: =$K14*1/1 -> 20000 | AD14: 1 | AE14: =$K14*1/1 -> 20000 | AG14: =$K14*1/1 -> 20000 | AI14: =$K14*1/1 -> 20000 | AK14: =$K14*1/1 -> 20000
A15: Preparation of barge for towing (guess) | B15: 1 | C15: 50000 | D15: LS | E15: =B15*C15 -> 50000 | G15: Preparation of barge for towing (guess) | H15: 50000 | I15: Ea | J15: 1 | K15: =E15 -> 50000 | L15: 1 | M15: =$K15*1/1 -> 50000 | N15: 1 | O15: =$K15*1/1 -> 50000 | Q15: =$K15*1/1 -> 50000 | S15: =$K15*1/1 -> 50000 | U15: =$K15*1/1 -> 50000 | W15: Preparation of barge for towing (guess) | X15: 50000 | Y15: Ea | Z15: 1 | AA15: =U15 -> 50000 | AB15: 1 | AC15: =$K15*1/1 -> 50000 | AD15: 1 | AE15: =$K15*1/1 -> 50000 | AG15: =$K15*1/1 -> 50000 | AI15: =$K15*1/1 -> 50000 | AK15: =$K15*1/1 -> 50000
A16: Total Estimate | B16: =B4+B6+B7 -> 4 | E16: 2480000 | G16: Total Estimate | K16: =SUM(K4:K15) -> 950000 | M16: =SUM(M4:M15) -> 950000 | O16: =SUM(O4:O15) -> 730000 | Q16: =SUM(Q4:Q15) -> 730000 | S16: =SUM(S4:S15) -> 510000 | U16: =SUM(U4:U15) -> 510000 | W16: Total Estimate | AA16: =SUM(AA4:AA15) -> 510000 | AC16: =SUM(AC4:AC15) -> 510000 | AE16: =SUM(AE4:AE15) -> 510000 | AG16: =SUM(AG4:AG15) -> 510000 | AI16: =SUM(AI4:AI15) -> 510000 | AK16: =SUM(AK4:AK15) -> 510000
A18: Subtotals
A19: Total Installation and anchor loadout | E19: =SUM(E4:E10) -> 710000
A20: Vessel Fuel, C-plane Loadout | E20: =SUM(E12:E15) -> 240000

Sheet Torque Calcs
A1: Mechanical Calculations | B1: Units | C1: Value | D1: Value | E1: Value | F1: Value | G1: Value | H1: Value
A2: Rotor Diameter | B2: m | C2: 45.5 | D2: 35.07870629 | E2: 27.84198761 | F2: 24.3222165 | G2: 34.9 | H2: 32.3
A3: TSR | B3: - | C3: 8 | D3: 8 | E3: 8 | F3: 8 | G3: 8 | H3: 8
A4: Rated Speed | B4: m/s | C4: 1.6 | D4: 1.6 | E4: 1.6 | F4: 1.6 | G4: 1.6 | H4: 1.8
A5: Tip Speed | B5: m/s | C5: =C3*C4 -> 12.8 | D5: 12.8 | E5: 12.8 | F5: 12.8 | G5: 12.8 | H5: 14.4
A6: RPM | B6: - | C6: =60/((PI()*C2)/C5) -> 5.372791046 | D6: 6.96895691 | E6: 8.780335513 | F6: 10.05097511 | G6: 7.004641621 | H6: 8.514543086
A7: Angular Velocity | B7: rad/s | C7: =C6*2*PI()/60 -> 0.5626373626 | D7: 0.7297874611 | E7: 0.9194745848 | F7: 1.052535652 | G7: 0.7335243553 | H7: 0.8916408669
A8: Power Rating (Nameplate) | B8: kW | C8: 1200 | D8: 793.9419637 | E8: 500.1520955 | F8: 381.6874853 | G8: 750 | H8: 1000
A9: System Efficenecy | B9: - | C9: 0.85 | D9: 0.85 | E9: 0.85 | F9: 0.85 | G9: 0.85 | H9: 0.85
A10: Input Power | B10: kW | C10: =C8/C9 -> 1411.764706 | D10: 934.049369 | E10: 588.41423 | F10: 449.0441004 | G10: 882.3529412 | H10: 1176.470588
A11: Input Torque | B11: kNm | C11: =C10/((2*PI()*C6/60)) -> 2509.191176 | D11: 1279.892323 | E11: 639.9461603 | F11: 426.6307744 | G11: 1202.895221 | H11: 1319.444444
A12: Gen RPM | C12: 1200 | D12: 1200 | E12: 1200 | F12: 1200 | G12: 1200 | H12: 1200
A13: Gen torque | B13: Nm | C13: =1000*(C8/0.98)/((2*PI()*C12/60)) -> 9744.180189 | D13: 6446.927961 | E13: 4061.310117 | F13: 3099.359694 | G13: =1000*(G8/0.98)/((2*PI()*G12/60)) -> 6090.112618 | H13: =1000*(H8/0.98)/((2*PI()*H12/60)) -> 8120.150158

Sheet Shaft Scaling
A1: 1200 kW PDC | H1: Shaft Scaling Factors | J1: TRB Weight | K1: TRB Dia. | O1: 1200 kW PDC
A2: N | B2: Factor of Safety | C2: 2 | E2: Inputs | H2: =A1 -> 1200 kW PDC | I2: =C8/$C$8 -> 1 | J2: =102162*I2^2 - 57571*I2 + 10173 -> 54764 | K2: =4.1097*I2+ 0.1294 -> 4.2391 | O2: N | P2: Factor of Safety | Q2: 2 | S2: Inputs
A3: Sf | B3: shear yelid | C3: =0.58*E3*1000000 -> 406000000 | D3: N/m^2 | E3: 700 | F3: Mpa | H3: =A12 -> 800 kW | I3: =C19/$C$8 -> 0.8171868638 | J3: =102162*I3^2 - 57571*I3 + 10173 -> 31349.94353 | K3: =4.1097*I3+ 0.1294 -> 3.487792854 | O3: Sf | P3: shear yelid | Q3: =0.58*S3*1000000 -> 406000000 | R3: N/m^2 | S3: 700 | T3: Mpa
A4: Sut | B4: Shear ultimate | C4: =0.75*E4*1000000 -> 750000000 | D4: N/m^2 | E4: 1000 | F4: Mpa | H4: =A23 -> 500 kW | I4: =C30/$C$8 -> 0.7050165995 | J4: =102162*I4^2 - 57571*I4 + 10173 -> 20363.94856 | K4: =4.1097*I4+ 0.1294 -> 3.026806719 | O4: Sut | P4: Shear ultimate | Q4: =0.75*S4*1000000 -> 750000000 | R4: N/m^2 | S4: 1000 | T4: Mpa
A5: Torque | C5: =E5*1000 -> 5000000 | D5: Nm | E5: 5000 | F5: kNm | H5: =A34 -> 375 kW | I5: =C41/$C$8 -> 0.641308123 | J5: 15269.03986 | K5: 2.764983993 | O5: Torque | Q5: =S5*1000 -> 2520000 | R5: Nm | S5: 2520 | T5: kNm
A6: Moment | C6: =E6*1000 -> 5000000 | D6: Nm | E6: 5000 | F6: kNm | H6: =A45 -> 750 kW | I6: =C52/$C$8 -> 0.8337818266 | J6: 33193.56529 | K6: 3.555993173 | O6: Moment | Q6: =S6*1000 -> 0 | R6: Nm | S6: 0 | T6: kNm
H7: =A56 -> 1000 kW | I7: =C63/$C$8 -> 0.7958114416 | J7: 29058.15342 | K7: 3.399946281
A8: D | B8: T @ ultimate | C8: =((32*C2/PI())*((C6/C3)^2+(C5/C4)^2)^0.5)^(1/3) -> 0.6583044389 | D8: m | O8: D | P8: Dia @ ultimate | Q8: =((32*Q2/PI())*((Q6/Q3)^2+(Q5/Q4)^2)^0.5)^(1/3) -> 0.4090626174 | R8: m
A9: D | B9: T @ Yeild | C9: =((C2*(32/PI())/C3)*((C5^2+C6^2)^0.5))^(1/3) -> 0.7079398453 | D9: m | O9: D | P9: Dia @ Yeild | Q9: =((Q2*(32/PI())/Q3)*((Q5^2+Q6^2)^0.5))^(1/3) -> 0.5019204255 | R9: m
A10: D | B10: Torque Only | C10: =((16/PI())*(C5/C3))^(1/3) -> 0.3973178044 | D10: m | H10: Shaft Scaling Factors | O10: D | P10: Dia Torque Only | Q10: =(Q2*(16/PI())*(Q2*Q5/Q3))^(1/3) -> 0.5019204255 | R10: m
H11: 1200 | I11: 1
A12: 800 kW | H12: 600 | I12: 0.876251271
A13: N | B13: Factor of Safety | C13: 2 | H13: 375 | I13: 0.6926169817
A14: Sf | B14: shear yelid | C14: =0.58*E14*1000000 -> 406000000 | D14: N/m^2 | E14: 700 | F14: Mpa | H14: 250 | I14: 0.5517848353
A15: Sut | B15: Shear ultimate | C15: =0.75*E15*1000000 -> 750000000 | D15: N/m^2 | E15: 1000 | F15: Mpa | H15: 125 | I15: 0.430886938
A16: Torque | C16: =E16*1000 -> 2500000 | D16: Nm | E16: 2500 | F16: kNm | H16: 50 | I16: 0.3419951893
A17: Moment | C17: =E17*1000 -> 2792000 | D17: Nm | E17: 2792 | F17: kNm
A19: D | B19: T @ ultimate | C19: =((32*C13/PI())*((C17/C14)^2+(C16/C15)^2)^0.5)^(1/3) -> 0.5379577399 | D19: m
A20: D | B20: T @ Yeild | C20: =((C13*(32/PI())/C14)*((C16^2+C17^2)^0.5))^(1/3) -> 0.5729143149 | D20: m
A21: D | B21: Torque Only | C21: =((16/PI())*(C16/C14))^(1/3) -> 0.3153513504 | D21: m
A23: 500 kW
A24: N | B24: Factor of Safety | C24: 2
A25: Sf | B25: shear yelid | C25: =0.58*E25*1000000 -> 406000000 | D25: N/m^2 | E25: 700 | F25: Mpa
A26: Sut | B26: Shear ultimate | C26: =0.75*E26*1000000 -> 750000000 | D26: N/m^2 | E26: 1000 | F26: Mpa
A27: Torque | C27: =E27*1000 -> 1260000 | D27: Nm | E27: 1260 | F27: kNm
A28: Moment | C28: =E28*1000 -> 1872000 | D28: Nm | E28: 1872 | F28: kNm
A30: D | B30: T @ ultimate | C30: =((32*C24/PI())*((C28/C25)^2+(C27/C26)^2)^0.5)^(1/3) -> 0.4641155569 | D30: m
A31: D | B31: T @ Yeild | C31: =((C24*(32/PI())/C25)*((C27^2+C28^2)^0.5))^(1/3) -> 0.4837814304 | D31: m
A32: D | B32: Torque Only | C32: =((16/PI())*(C27/C25))^(1/3) -> 0.2509602127 | D32: m
A34: 375 kW
A35: N | B35: Factor of Safety | C35: 2
A36: Sf | B36: shear yelid | C36: =0.58*E36*1000000 -> 406000000 | D36: N/m^2 | E36: 700 | F36: Mpa
A37: Sut | B37: Shear ultimate | C37: =0.75*E37*1000000 -> 750000000 | D37: N/m^2 | E37: 1000 | F37: Mpa
A38: Torque | C38: =E38*1000 -> 840000 | D38: Nm | E38: 840 | F38: kNm
A39: Moment | C39: =E39*1000 -> 1429000 | D39: Nm | E39: 1429 | F39: kNm
A41: D | B41: T @ ultimate | C41: =((32*C35/PI())*((C39/C36)^2+(C38/C37)^2)^0.5)^(1/3) -> 0.4221759841 | D41: m
A42: D | B42: T @ Yeild | C42: =((C35*(32/PI())/C36)*((C38^2+C39^2)^0.5))^(1/3) -> 0.4365104924 | D42: m
A43: D | B43: Torque Only | C43: =((16/PI())*(C38/C36))^(1/3) -> 0.2192339393 | D43: m
A45: 750 kW
A46: N | B46: Factor of Safety | C46: 2
A47: Sf | B47: shear yelid | C47: =0.58*E47*1000000 -> 406000000 | D47: N/m^2 | E47: 700 | F47: Mpa
A48: Sut | B48: Shear ultimate | C48: =0.75*E48*1000000 -> 750000000 | D48: N/m^2 | E48: 1000 | F48: Mpa
A49: Torque | C49: =E49*1000 -> 2520000 | D49: Nm | E49: 2520 | F49: kNm
A50: Moment | C50: =E50*1000 -> 3000000 | D50: Nm | E50: 3000 | F50: kNm
A52: D | B52: T @ ultimate | C52: =((32*C46/PI())*((C50/C47)^2+(C49/C48)^2)^0.5)^(1/3) -> 0.5488822775 | D52: m
A53: D | B53: T @ Yeild | C53: =((C46*(32/PI())/C47)*((C49^2+C50^2)^0.5))^(1/3) -> 0.5814619566 | D53: m
A54: D | B54: Torque Only | C54: =((16/PI())*(C49/C47))^(1/3) -> 0.3161900547 | D54: m
A56: 1000 kW
A57: N | B57: Factor of Safety | C57: 2
A58: Sf | B58: shear yelid | C58: =0.58*E58*1000000 -> 406000000 | D58: N/m^2 | E58: 700 | F58: Mpa
A59: Sut | B59: Shear ultimate | C59: =0.75*E59*1000000 -> 750000000 | D59: N/m^2 | E59: 1000 | F59: Mpa
A60: Torque | C60: =E60*1000 -> 2520000 | D60: Nm | E60: 2520 | F60: kNm
A61: Moment | C61: =E61*1000 -> 2520000 | D61: Nm | E61: 2520 | F61: kNm
A63: D | B63: T @ ultimate | C63: =((32*C57/PI())*((C61/C58)^2+(C60/C59)^2)^0.5)^(1/3) -> 0.5238862045 | D63: m
A64: D | B64: T @ Yeild | C64: =((C57*(32/PI())/C58)*((C60^2+C61^2)^0.5))^(1/3) -> 0.5633866289 | D64: m
A65: D | B65: Torque Only | C65: =((16/PI())*(C60/C58))^(1/3) -> 0.3161900547 | D65: m

Sheet Rotor Sizing Output
B1: 2X CBM 6000 | C1: CBM 6000 | D1: CBM 4000 | E1: CBM 2000 | F1: CBM 1200
A2: Rated Power Electrical (kW) | B2: 793.9419637 | C2: 500.1520955 | D2: 381.6874853 | E2: 240.4480485 | F2: 171.049977
A3: Diameter (m) | B3: 35.07870629 | C3: 27.84198761 | D3: 24.3222165 | E3: 19.30455602 | F3: 16.28211057
A4: Rated Rotor Speed (RPM) | B4: 6.96895691 | C4: 8.780335513 | D4: 10.05097511 | E4: 12.66343511 | F4: 15.01414645
A5: AEP | B5: 9031.642312 | C5: 5689.578124 | D5: 4341.960748 | E5: 2735.263871 | F5: 1945.812515
A6: Torque | B6: 2520.000002 | C6: 1259.999998 | D6: 840.0000008 | E6: 420.0000001 | F6: 252.0008094

Sheet 2.4 2400 FC Quick COE Baseline
C2: Quick COE calculation sheet
C3: This sheet can be used to make quick calculations of how a change will impact the COE.
C6: Assumed values: | D6: Value | E6: Unit | F6: Comments | I6: Effect of changes | O6: Finding COE Targets | P6: Updated: | Q6: 2011-10-12 | V6: Alternative 1
C8: Energy Production | I8: CAPEX increase or decrease | P8: Current breakdown | V8: Target breakdown | AA8: Decrease % Required
C9: NET Capacity Factor | D9: 0.56 | E9: percent | F9: Assumed after all losses are included | I9: Change in CAPEX | J9: 1000 | K9: k$ | P9: Value | Q9: Unit | R9: COE (cents/kWh) | S9: COE % | T9: % of CAPEX | V9: Value | W9: Unit | X9: COE (cents/kWh) | Y9: COE % | Z9: % of CAPEX | AA9: As a percentage based on current breakdown
C10: AEP_net (per rotor) | D10: =800*8760*D9/1000 -> 3924.48 | E10: MWh / yr | F10: This corresponds to approximately 65% net Capacity Factor at 800 kW | I10: Equals change in COE | J10: =J9*0.08/D12*100 -> 0.5096216569 | K10: cents/kWh | O10: Total | R10: =R12+R19+R21 -> 10.46234909 | S10: =R10/$R$10 -> 1 | X10: 8 | Y10: =Y12+Y19+Y21 -> 1
C11: Number of rotors | D11: 4 | E11: #
C12: AEP_net (C-Plane) | D12: =D10*D11 -> 15697.92 | E12: MWh / yr | O12: CAPEX (without margin) | P12: =SUM(P13:P17) -> 10559.51601 | Q12: k$ | R12: =CRF*P12/$P$24*100 -> 6.912940102 | S12: =R12/$R$10 -> 0.6607445465 | T12: =R12/$R$12 -> 1 | V12: =X12*$V$24/CRF/100 -> 7038.72 | W12: k$ | X12: =Y12*$X$10 -> 4.608 | Y12: 0.576 | Z12: =SUM(Z13:Z17) -> 1 | AA12: =(V12-P12)/P12 -> -0.3334239944
I13: Change in CAPEX | J13: 0.1 | K13: (in precent) | O13: Platform | P13: 4604 | Q13: k$ | R13: 3.014075286 | S13: 0.2880878149 | T13: 0.4360048318 | V13: 2815.488 | W13: k$ | X13: 1.8432 | Y13: =Z13*$Y$12 -> 0.2304 | Z13: 0.4 | AA13: =(V13-P13)/P13 -> -0.3884691573
C14: Capital Recovery Factor | D14: 0.08 | F14: Corresponds to a 20 year secured loan at around 4% interest rate. | I14: Equals change in COE | J14: =J13*D17*0.08/D12*100 -> 1.557301859 | K14: cents/kWh | O14: Drivetrain | P14: 2608 | Q14: k$ | R14: 1.707364975 | S14: 0.1631913599 | T14: 0.2469810168 | V14: 2111.616 | W14: k$ | X14: 1.3824 | Y14: =Z14*$Y$12 -> 0.1728 | Z14: 0.3 | AA14: -0.1903312883
O15: Mooring lines & attachments | P15: 751 | Q15: k$ | R15: 0.4916530278 | S15: 0.04699260403 | T15: 0.0711206839 | V15: 703.872 | W15: k$ | X15: 0.4608 | Y15: =Z15*$Y$12 -> 0.0576 | Z15: 0.1 | AA15: -0.06275366178
O16: Grid connect | P16: 1271 | Q16: k$ | R16: 0.8320785597 | S16: 0.07953075862 | T16: 0.1203653652 | V16: 985.4208 | W16: k$ | X16: 0.64512 | Y16: =Z16*$Y$12 -> 0.08064 | Z16: 0.14 | AA16: -0.2246885917
C17: CAPEX: | D17: 30558 | E17: k$ | F17: Based on current CAPEX | I17: OPEX increase or decrease | O17: Misc (assembly & installation) | P17: =('Install, Asm, O&M'!C9+'Install, Asm, O&M'!C16)/1000 -> 1325.516006 | Q17: k$ | R17: 0.8677682526 | S17: 0.08294200906 | T17: 0.1255281023 | V17: 422.3232 | W17: k$ | X17: 0.27648 | Y17: =Z17*$Y$12 -> 0.03456 | Z17: 0.06 | AA17: -0.6813895886
I18: Change in OPEX | J18: 200 | K18: k$ / yr
C19: O&M: | D19: 775 | E19: k$ / yr | F19: Based on current OPEX (witout tax deduction) | I19: Equals change in COE | J19: =J18/D12*100 -> 1.274054142 | K19: cents/kWh | O19: Gross margin (28%) | P19: =(P13+P14+P15)/(1-T19)-(P13+P14+P15) -> 3096.722222 | Q19: k$ | R19: =CRF*P19/$P$24*100 -> 2.027314057 | S19: =R19/$R$10 -> 0.1937723584 | T19: 0.28 | V19: =X19*$V$24/CRF/100 -> 2737.28 | W19: k$ | X19: =Y19*$X$10 -> 1.792 | Y19: =Y12*Z19/(1-Z19) -> 0.224 | Z19: 0.28 | AA19: =(T19-Z19)/T19 -> 0
C21: COE: | D21: =(0.08*D17+D19)/D12*100 -> 20.50997839 | E21: cents/kWh | I21: Change in OPEX | J21: 0.1 | K21: (in precent) | O21: O&M | P21: 186 | Q21: k$ / yr | R21: =P21/P24*100 -> 1.522094926 | S21: =R21/$R$10 -> 0.145483095 | V21: =X21*$V$24/100 -> 195.52 | W21: k$ / yr | X21: =Y21*$X$10 -> 1.6 | Y21: 0.2 | AA21: 0.0511827957
I22: Equals change in COE | J22: =J21*D19/D12*100 -> 0.4936959801 | K22: cents/kWh
S23: =T19*(S12+S21) -> 0.2257437396 | Y23: =100-20-16.128 -> 63.872
O24: AEP_net | P24: 12220 | Q24: MWh / yr | V24: =P24 -> 12220 | W24: MWh / yr | AA24: =(V24-P24)/P24 -> 0
I25: AEP increase or decrease
I26: Change in AEP | J26: 100 | K26: MWh/yr | O26: How to use this tool: | Y26: Tips:
I27: Equals change in COE | J27: =((0.08*D17+D19)/(D12+J26)*100)-((0.08*D17+D19)/D12*100) -> -0.129827081 | K27: cents/kWh | O27: 1) Set the yellow cells for the Target Breakdown | Y27: After setting the OPEX percentage or profit margin,
O28: 2) Column R gives the "target" costs for each sub-element | Y28: click here to adjust CAPEX percentage to get 100%
I29: Change in AEP | J29: 0.1 | K29: (in precent) | O29: 3) If you want to see the "Decrease required" you need to update the yellow cells under "Current Breakdown"
I30: Equals change in COE | J30: =((0.08*D17+D19)/(D12*(1+J29))*100)-((0.08*D17+D19)/D12*100) -> -1.86454349 | K30: cents/kWh

Sheet 2.4 2400 FC Quick COE
C2: Quick COE calculation sheet
C3: This sheet can be used to make quick calculations of how a change will impact the COE.
C6: Assumed values: | D6: Value | E6: Unit | F6: Comments | I6: Effect of changes | O6: Finding COE Targets | P6: Updated: | Q6: 2011-10-12 | V6: Alternative 1
C8: Energy Production | I8: CAPEX increase or decrease | P8: Current breakdown | V8: Target breakdown | AA8: Decrease % Required
C9: NET Capacity Factor | D9: 0.56 | E9: percent | F9: Assumed after all losses are included | I9: Change in CAPEX | J9: 1000 | K9: k$ | P9: Value | Q9: Unit | R9: COE (cents/kWh) | S9: COE % | T9: % of CAPEX | V9: Value | W9: Unit | X9: COE (cents/kWh) | Y9: COE % | Z9: % of CAPEX | AA9: As a percentage based on current breakdown
C10: AEP_net (per rotor) | D10: =800*8760*D9/1000 -> 3924.48 | E10: MWh / yr | F10: This corresponds to approximately 65% net Capacity Factor at 800 kW | I10: Equals change in COE | J10: =J9*0.08/D12*100 -> 0.5096216569 | K10: cents/kWh | O10: Total | R10: =R12+R19+R21 -> 10.40327679 | S10: =R10/$R$10 -> 1 | X10: 8 | Y10: =Y12+Y19+Y21 -> 1
C11: Number of rotors | D11: 4 | E11: #
C12: AEP_net (C-Plane) | D12: =D10*D11 -> 15697.92 | E12: MWh / yr | O12: CAPEX (without margin) | P12: =SUM(P13:P17) -> 10029.05798 | Q12: k$ | R12: =CRF*P12/$P$24*100 -> 5.877476627 | S12: =R12/$R$10 -> 0.5649639768 | T12: =R12/$R$12 -> 1 | V12: =X12*$V$24/CRF/100 -> 7862.880981 | W12: k$ | X12: =Y12*$X$10 -> 4.608 | Y12: 0.576 | Z12: =SUM(Z13:Z17) -> 1 | AA12: =(V12-P12)/P12 -> -0.2159900766
I13: Change in CAPEX | J13: 0.1 | K13: (in precent) | O13: Platform | P13: ='BOM Cost'!E4/1000 -> 3340.394548 | Q13: k$ | R13: 1.957620637 | S13: 0.1881734646 | T13: 0.3330716158 | V13: 3145.152392 | W13: k$ | X13: 1.8432 | Y13: =Z13*$Y$12 -> 0.2304 | Z13: 0.4 | AA13: =(V13-P13)/P13 -> -0.0584488307
C14: Capital Recovery Factor | D14: 0.08 | F14: Corresponds to a 20 year secured loan at around 4% interest rate. | I14: Equals change in COE | J14: =J13*D17*0.08/D12*100 -> 1.557301859 | K14: cents/kWh | O14: Drivetrain | P14: =2*'BOM Cost'!E25/1000 -> 3435.041848 | Q14: k$ | R14: 2.013088189 | S14: 0.1935052032 | T14: 0.342508923 | V14: 2358.864294 | W14: k$ | X14: 1.3824 | Y14: =Z14*$Y$12 -> 0.1728 | Z14: 0.3 | AA14: -0.3132938699
O15: Mooring lines & attachments | P15: ='Mooring Cost'!C4/1000 -> 750.6 | Q15: k$ | R15: 0.439885178 | S15: 0.04228332927 | T15: 0.07484252273 | V15: 786.2880981 | W15: k$ | X15: 0.4608 | Y15: =Z15*$Y$12 -> 0.0576 | Z15: 0.1 | AA15: 0.04754609388
O16: Grid connect | P16: ='Grid Connection - MW Scale'!C3/1000 -> 1177.505581 | Q16: k$ | R16: 0.6900709463 | S16: 0.06633207596 | T16: 0.1174093901 | V16: 1100.803337 | W16: k$ | X16: 0.64512 | Y16: =Z16*$Y$12 -> 0.08064 | Z16: 0.14 | AA16: -0.0651396013
C17: CAPEX: | D17: 30558 | E17: k$ | F17: Based on current CAPEX | I17: OPEX increase or decrease | O17: Misc (assembly & installation) | P17: =('Install, Asm, O&M'!C9+'Install, Asm, O&M'!C16)/1000 -> 1325.516006 | Q17: k$ | R17: 0.7768116763 | S17: 0.07466990372 | T17: 0.1321675483 | V17: 471.7728588 | W17: k$ | X17: 0.27648 | Y17: =Z17*$Y$12 -> 0.03456 | Z17: 0.06 | AA17: -0.6440836197
I18: Change in OPEX | J18: 200 | K18: k$ / yr
C19: O&M: | D19: 775 | E19: k$ / yr | F19: Based on current OPEX (witout tax deduction) | I19: Equals change in COE | J19: =J18/D12*100 -> 1.274054142 | K19: cents/kWh | O19: Gross margin (28%) | P19: =(P13+P14+P15)/(1-T19)-(P13+P14+P15) -> 2926.791932 | Q19: k$ | R19: =CRF*P19/$P$24*100 -> 1.715231002 | S19: =R19/$R$10 -> 0.16487411 | T19: 0.28 | V19: =X19*$V$24/CRF/100 -> 3057.787048 | W19: k$ | X19: =Y19*$X$10 -> 1.792 | Y19: =Y12*Z19/(1-Z19) -> 0.224 | Z19: 0.28 | AA19: =(T19-Z19)/T19 -> 0
C21: COE: | D21: =(0.08*D17+D19)/D12*100 -> 20.50997839 | E21: cents/kWh | I21: Change in OPEX | J21: 0.1 | K21: (in precent) | O21: O&M | P21: ='Install, Asm, O&M'!C48/1000 -> 383.6661598 | Q21: k$ / yr | R21: =P21/P24*100 -> 2.810569162 | S21: =R21/$R$10 -> 0.2701619132 | V21: =X21*$V$24/100 -> 218.4133606 | W21: k$ / yr | X21: =Y21*$X$10 -> 1.6 | Y21: 0.2 | AA21: -0.430720289
I22: Equals change in COE | J22: =J21*D19/D12*100 -> 0.4936959801 | K22: cents/kWh
S23: =T19*(S12+S21) -> 0.2338352492 | Y23: =100-20-16.128 -> 63.872
O24: AEP_net | P24: =AEP!$C$3 -> 13650.83504 | Q24: MWh / yr | V24: =P24 -> 13650.83504 | W24: MWh / yr | AA24: =(V24-P24)/P24 -> 0
I25: AEP increase or decrease
I26: Change in AEP | J26: 100 | K26: MWh/yr | O26: How to use this tool: | Y26: Tips:
I27: Equals change in COE | J27: =((0.08*D17+D19)/(D12+J26)*100)-((0.08*D17+D19)/D12*100) -> -0.129827081 | K27: cents/kWh | O27: 1) Set the yellow cells for the Target Breakdown | Y27: After setting the OPEX percentage or profit margin,
O28: 2) Column R gives the "target" costs for each sub-element | Y28: click here to adjust CAPEX percentage to get 100%
I29: Change in AEP | J29: 0.1 | K29: (in precent) | O29: 3) If you want to see the "Decrease required" you need to update the yellow cells under "Current Breakdown"
I30: Equals change in COE | J30: =((0.08*D17+D19)/(D12*(1+J29))*100)-((0.08*D17+D19)/D12*100) -> -1.86454349 | K30: cents/kWh
P33: =P12/2.4 -> 4178.77416

Sheet 2.4 1600 FC Quick COE
C2: Quick COE calculation sheet
C3: This sheet can be used to make quick calculations of how a change will impact the COE.
C6: Assumed values: | D6: Value | E6: Unit | F6: Comments | I6: Effect of changes | O6: Finding COE Targets | P6: Updated: | Q6: 2011-10-12 | V6: Alternative 1
C8: Energy Production | I8: CAPEX increase or decrease | P8: Current breakdown | V8: Target breakdown | AA8: Decrease % Required
C9: NET Capacity Factor | D9: 0.56 | E9: percent | F9: Assumed after all losses are included | I9: Change in CAPEX | J9: 1000 | K9: k$ | P9: Value | Q9: Unit | R9: COE (cents/kWh) | S9: COE % | T9: % of CAPEX | V9: Value | W9: Unit | X9: COE (cents/kWh) | Y9: COE % | Z9: % of CAPEX | AA9: As a percentage based on current breakdown
C10: AEP_net (per rotor) | D10: =800*8760*D9/1000 -> 3924.48 | E10: MWh / yr | F10: This corresponds to approximately 65% net Capacity Factor at 800 kW | I10: Equals change in COE | J10: =J9*0.08/D12*100 -> 0.5096216569 | K10: cents/kWh | O10: Total | R10: =R12+R19+R21 -> 12.32162862 | S10: =R10/$R$10 -> 1 | X10: 8 | Y10: =Y12+Y19+Y21 -> 1
C11: Number of rotors | D11: 4 | E11: #
C12: AEP_net (C-Plane) | D12: =D10*D11 -> 15697.92 | E12: MWh / yr | O12: CAPEX (without margin) | P12: =SUM(P13:P17) -> 7616.460257 | Q12: k$ | R12: =CRF*P12/$P$24*100 -> 6.746467581 | S12: =R12/$R$10 -> 0.5475305082 | T12: =R12/$R$12 -> 1 | V12: =X12*$V$24/CRF/100 -> 5202.225971 | W12: k$ | X12: =Y12*$X$10 -> 4.608 | Y12: 0.576 | Z12: =SUM(Z13:Z17) -> 1 | AA12: =(V12-P12)/P12 -> -0.3169758922
I13: Change in CAPEX | J13: 0.1 | K13: (in precent) | O13: Platform | P13: ='BOM Cost'!$G$4/1000 -> 2304.260603 | Q13: k$ | R13: 2.041055679 | S13: 0.1656482062 | T13: 0.3025369431 | V13: 2080.890389 | W13: k$ | X13: 1.8432 | Y13: =Z13*$Y$12 -> 0.2304 | Z13: 0.4 | AA13: =(V13-P13)/P13 -> -0.09693791342
C14: Capital Recovery Factor | D14: 0.08 | F14: Corresponds to a 20 year secured loan at around 4% interest rate. | I14: Equals change in COE | J14: =J13*D17*0.08/D12*100 -> 1.557301859 | K14: cents/kWh | O14: Drivetrain | P14: =(2*'BOM Cost'!$G$25/1000) -> 2556.371548 | Q14: k$ | R14: 2.264369167 | S14: 0.1837719052 | T14: 0.3356377453 | V14: 1560.667791 | W14: k$ | X14: 1.3824 | Y14: =Z14*$Y$12 -> 0.1728 | Z14: 0.3 | AA14: -0.3894988415
O15: Mooring lines & attachments | P15: ='Mooring Cost'!$D$4/1000 -> 665.4854611 | Q15: k$ | R15: 0.5894701656 | S15: 0.04784028019 | T15: 0.08737463844 | V15: 520.2225971 | W15: k$ | X15: 0.4608 | Y15: =Z15*$Y$12 -> 0.0576 | Z15: 0.1 | AA15: -0.2182810482
O16: Grid connect | P16: ='Grid Connection - MW Scale'!$D$3/1000 -> 872.2316717 | Q16: k$ | R16: 0.7726007223 | S16: 0.0627028087 | T16: 0.1145192967 | V16: 728.311636 | W16: k$ | X16: 0.64512 | Y16: =Z16*$Y$12 -> 0.08064 | Z16: 0.14 | AA16: -0.165002075
C17: CAPEX: | D17: 30558 | E17: k$ | F17: Based on current CAPEX | I17: OPEX increase or decrease | O17: Misc (assembly & installation) | P17: =('Install, Asm, O&M'!$D$9+'Install, Asm, O&M'!$D$16)/1000 -> 1218.110973 | Q17: k$ | R17: 1.078971846 | S17: 0.08756730783 | T17: 0.1599313765 | V17: 312.1335583 | W17: k$ | X17: 0.27648 | Y17: =Z17*$Y$12 -> 0.03456 | Z17: 0.06 | AA17: -0.7437560573
I18: Change in OPEX | J18: 200 | K18: k$ / yr
C19: O&M: | D19: 775 | E19: k$ / yr | F19: Based on current OPEX (witout tax deduction) | I19: Equals change in COE | J19: =J18/D12*100 -> 1.274054142 | K19: cents/kWh | O19: Gross margin (28%) | P19: =(P13+P14+P15)/(1-T19)-(P13+P14+P15) -> 2149.045738 | Q19: k$ | R19: =CRF*P19/$P$24*100 -> 1.903570282 | S19: =R19/$R$10 -> 0.1544901523 | T19: 0.28 | V19: =X19*$V$24/CRF/100 -> 2023.087878 | W19: k$ | X19: =Y19*$X$10 -> 1.792 | Y19: =Y12*Z19/(1-Z19) -> 0.224 | Z19: 0.28 | AA19: =(T19-Z19)/T19 -> 0
C21: COE: | D21: =(0.08*D17+D19)/D12*100 -> 20.50997839 | E21: cents/kWh | I21: Change in OPEX | J21: 0.1 | K21: (in precent) | O21: O&M | P21: ='Install, Asm, O&M'!$D$48/1000 -> 331.6049445 | Q21: k$ / yr | R21: =P21/P24*100 -> 3.671590759 | S21: =R21/$R$10 -> 0.2979793395 | V21: =X21*$V$24/100 -> 144.506277 | W21: k$ / yr | X21: =Y21*$X$10 -> 1.6 | Y21: 0.2 | AA21: -0.5642215854
I22: Equals change in COE | J22: =J21*D19/D12*100 -> 0.4936959801 | K22: cents/kWh
S23: =T19*(S12+S21) -> 0.2367427574 | Y23: =100-20-16.128 -> 63.872
O24: AEP_net | P24: =AEP!$D$3 -> 9031.642312 | Q24: MWh / yr | V24: =P24 -> 9031.642312 | W24: MWh / yr | AA24: =(V24-P24)/P24 -> 0
I25: AEP increase or decrease
I26: Change in AEP | J26: 100 | K26: MWh/yr | O26: How to use this tool: | Y26: Tips:
I27: Equals change in COE | J27: =((0.08*D17+D19)/(D12+J26)*100)-((0.08*D17+D19)/D12*100) -> -0.129827081 | K27: cents/kWh | O27: 1) Set the yellow cells for the Target Breakdown | Y27: After setting the OPEX percentage or profit margin,
O28: 2) Column R gives the "target" costs for each sub-element | Y28: click here to adjust CAPEX percentage to get 100%
I29: Change in AEP | J29: 0.1 | K29: (in precent) | O29: 3) If you want to see the "Decrease required" you need to update the yellow cells under "Current Breakdown"
I30: Equals change in COE | J30: =((0.08*D17+D19)/(D12*(1+J29))*100)-((0.08*D17+D19)/D12*100) -> -1.86454349 | K30: cents/kWh

Sheet 2.4 1000 FC Quick COE
C2: Quick COE calculation sheet
C3: This sheet can be used to make quick calculations of how a change will impact the COE.
C6: Assumed values: | D6: Value | E6: Unit | F6: Comments | I6: Effect of changes | O6: Finding COE Targets | P6: Updated: | Q6: 2011-10-12 | V6: Alternative 1
C8: Energy Production | I8: CAPEX increase or decrease | P8: Current breakdown | V8: Target breakdown | AA8: Decrease % Required
C9: NET Capacity Factor | D9: 0.56 | E9: percent | F9: Assumed after all losses are included | I9: Change in CAPEX | J9: 1000 | K9: k$ | P9: Value | Q9: Unit | R9: COE (cents/kWh) | S9: COE % | T9: % of CAPEX | V9: Value | W9: Unit | X9: COE (cents/kWh) | Y9: COE % | Z9: % of CAPEX | AA9: As a percentage based on current breakdown
C10: AEP_net (per rotor) | D10: =800*8760*D9/1000 -> 3924.48 | E10: MWh / yr | F10: This corresponds to approximately 65% net Capacity Factor at 800 kW | I10: Equals change in COE | J10: =J9*0.08/D12*100 -> 0.5096216569 | K10: cents/kWh | O10: Total | R10: =R12+R19+R21 -> 12.97073662 | S10: =R10/$R$10 -> 1 | X10: 8 | Y10: =Y12+Y19+Y21 -> 1
C11: Number of rotors | D11: 4 | E11: #
C12: AEP_net (C-Plane) | D12: =D10*D11 -> 15697.92 | E12: MWh / yr | O12: CAPEX (without margin) | P12: =SUM(P13:P17) -> 4898.138185 | Q12: k$ | R12: =CRF*P12/$P$24*100 -> 6.88717241 | S12: =R12/$R$10 -> 0.5309777396 | T12: =R12/$R$12 -> 1 | V12: =X12*$V$24/CRF/100 -> 3277.196999 | W12: k$ | X12: =Y12*$X$10 -> 4.608 | Y12: 0.576 | Z12: =SUM(Z13:Z17) -> 1 | AA12: =(V12-P12)/P12 -> -0.3309300645
I13: Change in CAPEX | J13: 0.1 | K13: (in precent) | O13: Platform | P13: ='BOM Cost'!$I$4/1000 -> 1375.740388 | Q13: k$ | R13: 1.934400559 | S13: 0.149135752 | T13: 0.2808700645 | V13: 1310.8788 | W13: k$ | X13: 1.8432 | Y13: =Z13*$Y$12 -> 0.2304 | Z13: 0.4 | AA13: =(V13-P13)/P13 -> -0.04714667742
C14: Capital Recovery Factor | D14: 0.08 | F14: Corresponds to a 20 year secured loan at around 4% interest rate. | I14: Equals change in COE | J14: =J13*D17*0.08/D12*100 -> 1.557301859 | K14: cents/kWh | O14: Drivetrain | P14: =(2*'BOM Cost'!$I$25/1000) -> 1477.253232 | Q14: k$ | R14: 2.077135703 | S14: 0.1601401497 | T14: 0.3015948461 | V14: 983.1590998 | W14: k$ | X14: 1.3824 | Y14: =Z14*$Y$12 -> 0.1728 | Z14: 0.3 | AA14: -0.3344681343
O15: Mooring lines & attachments | P15: ='Mooring Cost'!$E$4/1000 -> 528.1961602 | Q15: k$ | R15: 0.7426858705 | S15: 0.05725857308 | T15: 0.1078361084 | V15: 327.7196999 | W15: k$ | X15: 0.4608 | Y15: =Z15*$Y$12 -> 0.0576 | Z15: 0.1 | AA15: -0.3795492572
O16: Grid connect | P16: ='Grid Connection - MW Scale'!$E$3/1000 -> 628.4987234 | Q16: k$ | R16: 0.8837192632 | S16: 0.06813177149 | T16: 0.1283138 | V16: 458.8075799 | W16: k$ | X16: 0.64512 | Y16: =Z16*$Y$12 -> 0.08064 | Z16: 0.14 | AA16: -0.2699944124
C17: CAPEX: | D17: 30558 | E17: k$ | F17: Based on current CAPEX | I17: OPEX increase or decrease | O17: Misc (assembly & installation) | P17: =('Install, Asm, O&M'!$E$9+'Install, Asm, O&M'!$E$16)/1000 -> 888.449681 | Q17: k$ | R17: 1.249231014 | S17: 0.09631149339 | T17: 0.181385181 | V17: 196.63182 | W17: k$ | X17: 0.27648 | Y17: =Z17*$Y$12 -> 0.03456 | Z17: 0.06 | AA17: -0.7786798463
I18: Change in OPEX | J18: 200 | K18: k$ / yr
C19: O&M: | D19: 775 | E19: k$ / yr | F19: Based on current OPEX (witout tax deduction) | I19: Equals change in COE | J19: =J18/D12*100 -> 1.274054142 | K19: cents/kWh | O19: Gross margin (28%) | P19: =(P13+P14+P15)/(1-T19)-(P13+P14+P15) -> 1314.907137 | Q19: k$ | R19: =CRF*P19/$P$24*100 -> 1.848864163 | S19: =R19/$R$10 -> 0.1425411846 | T19: 0.28 | V19: =X19*$V$24/CRF/100 -> 1274.4655 | W19: k$ | X19: =Y19*$X$10 -> 1.792 | Y19: =Y12*Z19/(1-Z19) -> 0.224 | Z19: 0.28 | AA19: =(T19-Z19)/T19 -> 0
C21: COE: | D21: =(0.08*D17+D19)/D12*100 -> 20.50997839 | E21: cents/kWh | I21: Change in OPEX | J21: 0.1 | K21: (in precent) | O21: O&M | P21: ='Install, Asm, O&M'!$E$48/1000 -> 240.9365673 | Q21: k$ / yr | R21: =P21/P24*100 -> 4.234700044 | S21: =R21/$R$10 -> 0.3264810757 | V21: =X21*$V$24/100 -> 91.03324998 | W21: k$ / yr | X21: =Y21*$X$10 -> 1.6 | Y21: 0.2 | AA21: -0.6221692248
I22: Equals change in COE | J22: =J21*D19/D12*100 -> 0.4936959801 | K22: cents/kWh
S23: =T19*(S12+S21) -> 0.2400884683 | Y23: =100-20-16.128 -> 63.872
O24: AEP_net | P24: =AEP!$E$3 -> 5689.578124 | Q24: MWh / yr | V24: =P24 -> 5689.578124 | W24: MWh / yr | AA24: =(V24-P24)/P24 -> 0
I25: AEP increase or decrease
I26: Change in AEP | J26: 100 | K26: MWh/yr | O26: How to use this tool: | Y26: Tips:
I27: Equals change in COE | J27: =((0.08*D17+D19)/(D12+J26)*100)-((0.08*D17+D19)/D12*100) -> -0.129827081 | K27: cents/kWh | O27: 1) Set the yellow cells for the Target Breakdown | Y27: After setting the OPEX percentage or profit margin,
O28: 2) Column R gives the "target" costs for each sub-element | Y28: click here to adjust CAPEX percentage to get 100%
I29: Change in AEP | J29: 0.1 | K29: (in precent) | O29: 3) If you want to see the "Decrease required" you need to update the yellow cells under "Current Breakdown"
I30: Equals change in COE | J30: =((0.08*D17+D19)/(D12*(1+J29))*100)-((0.08*D17+D19)/D12*100) -> -1.86454349 | K30: cents/kWh

Sheet 2.4 750 FC Quick COE
C2: Quick COE calculation sheet
C3: This sheet can be used to make quick calculations of how a change will impact the COE.
C6: Assumed values: | D6: Value | E6: Unit | F6: Comments | I6: Effect of changes | O6: Finding COE Targets | P6: Updated: | Q6: 2011-10-12 | V6: Alternative 1
C8: Energy Production | I8: CAPEX increase or decrease | P8: Current breakdown | V8: Target breakdown | AA8: Decrease % Required
C9: NET Capacity Factor | D9: 0.56 | E9: percent | F9: Assumed after all losses are included | I9: Change in CAPEX | J9: 1000 | K9: k$ | P9: Value | Q9: Unit | R9: COE (cents/kWh) | S9: COE % | T9: % of CAPEX | V9: Value | W9: Unit | X9: COE (cents/kWh) | Y9: COE % | Z9: % of CAPEX | AA9: As a percentage based on current breakdown
C10: AEP_net (per rotor) | D10: =800*8760*D9/1000 -> 3924.48 | E10: MWh / yr | F10: This corresponds to approximately 65% net Capacity Factor at 800 kW | I10: Equals change in COE | J10: =J9*0.08/D12*100 -> 0.5096216569 | K10: cents/kWh | O10: Total | R10: =R12+R19+R21 -> 10.67240494 | S10: =R10/$R$10 -> 1 | X10: 8 | Y10: =Y12+Y19+Y21 -> 1
C11: Number of rotors | D11: 4 | E11: #
C12: AEP_net (C-Plane) | D12: =D10*D11 -> 15697.92 | E12: MWh / yr | O12: CAPEX (without margin) | P12: =SUM(P13:P17) -> 6486.508274 | Q12: k$ | R12: =CRF*P12/$P$24*100 -> 5.805845467 | S12: =R12/$R$10 -> 0.5440053577 | T12: =R12/$R$12 -> 1 | V12: =X12*$V$24/CRF/100 -> 5148.2304 | W12: k$ | X12: =Y12*$X$10 -> 4.608 | Y12: 0.576 | Z12: =SUM(Z13:Z17) -> 1 | AA12: =(V12-P12)/P12 -> -0.206317146
I13: Change in CAPEX | J13: 0.1 | K13: (in precent) | O13: Platform | P13: ='BOM Cost'!$K$4/1000 -> 1933.254201 | Q13: k$ | R13: 1.730387855 | S13: 0.1621366378 | T13: 0.2980423548 | V13: 2059.29216 | W13: k$ | X13: 1.8432 | Y13: =Z13*$Y$12 -> 0.2304 | Z13: 0.4 | AA13: =(V13-P13)/P13 -> 0.06519471633
C14: Capital Recovery Factor | D14: 0.08 | F14: Corresponds to a 20 year secured loan at around 4% interest rate. | I14: Equals change in COE | J14: =J13*D17*0.08/D12*100 -> 1.557301859 | K14: cents/kWh | O14: Drivetrain | P14: =(2*'BOM Cost'!$K$25/1000) -> 1894.14104 | Q14: k$ | R14: 1.69537904 | S14: 0.1588563261 | T14: 0.2920124294 | V14: 1544.46912 | W14: k$ | X14: 1.3824 | Y14: =Z14*$Y$12 -> 0.1728 | Z14: 0.3 | AA14: -0.1846071187
O15: Mooring lines & attachments | P15: ='Mooring Cost'!$F$4/1000 -> 662.0951868 | Q15: k$ | R15: 0.59261812 | S15: 0.05552807669 | T15: 0.1020726651 | V15: 514.82304 | W15: k$ | X15: 0.4608 | Y15: =Z15*$Y$12 -> 0.0576 | Z15: 0.1 | AA15: -0.2224334956
O16: Grid connect | P16: ='Grid Connection - MW Scale'!$F$3/1000 -> 832.0659956 | Q16: k$ | R16: 0.7447530141 | S16: 0.06978305436 | T16: 0.1282764101 | V16: 720.752256 | W16: k$ | X16: 0.64512 | Y16: =Z16*$Y$12 -> 0.08064 | Z16: 0.14 | AA16: -0.1337799407
C17: CAPEX: | D17: 30558 | E17: k$ | F17: Based on current CAPEX | I17: OPEX increase or decrease | O17: Misc (assembly & installation) | P17: =('Install, Asm, O&M'!$F$9+'Install, Asm, O&M'!$F$16)/1000 -> 1164.951852 | Q17: k$ | R17: 1.042707438 | S17: 0.09770126266 | T17: 0.1795961405 | V17: 308.893824 | W17: k$ | X17: 0.27648 | Y17: =Z17*$Y$12 -> 0.03456 | Z17: 0.06 | AA17: -0.734844128
I18: Change in OPEX | J18: 200 | K18: k$ / yr
C19: O&M: | D19: 775 | E19: k$ / yr | F19: Based on current OPEX (witout tax deduction) | I19: Equals change in COE | J19: =J18/D12*100 -> 1.274054142 | K19: cents/kWh | O19: Gross margin (28%) | P19: =(P13+P14+P15)/(1-T19)-(P13+P14+P15) -> 1745.912944 | Q19: k$ | R19: =CRF*P19/$P$24*100 -> 1.562705283 | S19: =R19/$R$10 -> 0.1464248491 | T19: 0.28 | V19: =X19*$V$24/CRF/100 -> 2002.0896 | W19: k$ | X19: =Y19*$X$10 -> 1.792 | Y19: =Y12*Z19/(1-Z19) -> 0.224 | Z19: 0.28 | AA19: =(T19-Z19)/T19 -> 0
C21: COE: | D21: =(0.08*D17+D19)/D12*100 -> 20.50997839 | E21: cents/kWh | I21: Change in OPEX | J21: 0.1 | K21: (in precent) | O21: O&M | P21: ='Install, Asm, O&M'!$F$48/1000 -> 295.2951837 | Q21: k$ / yr | R21: =P21/P24*100 -> 3.30385419 | S21: =R21/$R$10 -> 0.3095697932 | V21: =X21*$V$24/100 -> 143.0064 | W21: k$ / yr | X21: =Y21*$X$10 -> 1.6 | Y21: 0.2 | AA21: -0.5157171268
I22: Equals change in COE | J22: =J21*D19/D12*100 -> 0.4936959801 | K22: cents/kWh
S23: =T19*(S12+S21) -> 0.2390010422 | Y23: =100-20-16.128 -> 63.872
O24: AEP_net | P24: =AEP!$F$3 -> 8937.9 | Q24: MWh / yr | V24: =P24 -> 8937.9 | W24: MWh / yr | AA24: =(V24-P24)/P24 -> 0
I25: AEP increase or decrease
I26: Change in AEP | J26: 100 | K26: MWh/yr | O26: How to use this tool: | Y26: Tips:
I27: Equals change in COE | J27: =((0.08*D17+D19)/(D12+J26)*100)-((0.08*D17+D19)/D12*100) -> -0.129827081 | K27: cents/kWh | O27: 1) Set the yellow cells for the Target Breakdown | Y27: After setting the OPEX percentage or profit margin,
O28: 2) Column R gives the "target" costs for each sub-element | Y28: click here to adjust CAPEX percentage to get 100%
I29: Change in AEP | J29: 0.1 | K29: (in precent) | O29: 3) If you want to see the "Decrease required" you need to update the yellow cells under "Current Breakdown"
I30: Equals change in COE | J30: =((0.08*D17+D19)/(D12*(1+J29))*100)-((0.08*D17+D19)/D12*100) -> -1.86454349 | K30: cents/kWh

Sheet 2.4 500 FC Quick COE
C2: Quick COE calculation sheet
C3: This sheet can be used to make quick calculations of how a change will impact the COE.
C6: Assumed values: | D6: Value | E6: Unit | F6: Comments | I6: Effect of changes | O6: Finding COE Targets | P6: Updated: | Q6: 2011-10-12 | V6: Alternative 1
C8: Energy Production | I8: CAPEX increase or decrease | P8: Current breakdown | V8: Target breakdown | AA8: Decrease % Required
C9: NET Capacity Factor | D9: 0.56 | E9: percent | F9: Assumed after all losses are included | I9: Change in CAPEX | J9: 1000 | K9: k$ | P9: Value | Q9: Unit | R9: COE (cents/kWh) | S9: COE % | T9: % of CAPEX | V9: Value | W9: Unit | X9: COE (cents/kWh) | Y9: COE % | Z9: % of CAPEX | AA9: As a percentage based on current breakdown
C10: AEP_net (per rotor) | D10: =800*8760*D9/1000 -> 3924.48 | E10: MWh / yr | F10: This corresponds to approximately 65% net Capacity Factor at 800 kW | I10: Equals change in COE | J10: =J9*0.08/D12*100 -> 0.5096216569 | K10: cents/kWh | O10: Total | R10: =R12+R19+R21 -> 14.870009 | S10: =R10/$R$10 -> 1 | X10: 8 | Y10: =Y12+Y19+Y21 -> 1
C11: Number of rotors | D11: 4 | E11: #
C12: AEP_net (C-Plane) | D12: =D10*D11 -> 15697.92 | E12: MWh / yr | O12: CAPEX (without margin) | P12: =SUM(P13:P17) -> 6486.508274 | Q12: k$ | R12: =CRF*P12/$P$24*100 -> 8.09255717 | S12: =R12/$R$10 -> 0.5442200587 | T12: =R12/$R$12 -> 1 | V12: =X12*$V$24/CRF/100 -> 3693.49632 | W12: k$ | X12: =Y12*$X$10 -> 4.608 | Y12: 0.576 | Z12: =SUM(Z13:Z17) -> 1 | AA12: =(V12-P12)/P12 -> -0.4305878966
I13: Change in CAPEX | J13: 0.1 | K13: (in precent) | O13: Platform | P13: ='BOM Cost'!$M$4/1000 -> 1933.254201 | Q13: k$ | R13: 2.411924796 | S13: 0.1622006278 | T13: 0.2980423548 | V13: 1477.398528 | W13: k$ | X13: 1.8432 | Y13: =Z13*$Y$12 -> 0.2304 | Z13: 0.4 | AA13: =(V13-P13)/P13 -> -0.2357970683
C14: Capital Recovery Factor | D14: 0.08 | F14: Corresponds to a 20 year secured loan at around 4% interest rate. | I14: Equals change in COE | J14: =J13*D17*0.08/D12*100 -> 1.557301859 | K14: cents/kWh | O14: Drivetrain | P14: =(2*'BOM Cost'!$M$25/1000) -> 1894.14104 | Q14: k$ | R14: 2.36312728 | S14: 0.1589190215 | T14: 0.2920124294 | V14: 1108.048896 | W14: k$ | X14: 1.3824 | Y14: =Z14*$Y$12 -> 0.1728 | Z14: 0.3 | AA14: -0.4150124659
O15: Mooring lines & attachments | P15: ='Mooring Cost'!$G$4/1000 -> 662.0951868 | Q15: k$ | R15: 0.8260288779 | S15: 0.05554999179 | T15: 0.1020726651 | V15: 369.349632 | W15: k$ | X15: 0.4608 | Y15: =Z15*$Y$12 -> 0.0576 | Z15: 0.1 | AA15: -0.4421502537
O16: Grid connect | P16: ='Grid Connection - MW Scale'!$G$3/1000 -> 832.0659956 | Q16: k$ | R16: 1.038084182 | S16: 0.06981059543 | T16: 0.1282764101 | V16: 517.0894848 | W16: k$ | X16: 0.64512 | Y16: =Z16*$Y$12 -> 0.08064 | Z16: 0.14 | AA16: -0.37854751
C17: CAPEX: | D17: 30558 | E17: k$ | F17: Based on current CAPEX | I17: OPEX increase or decrease | O17: Misc (assembly & installation) | P17: =('Install, Asm, O&M'!$G$9+'Install, Asm, O&M'!$G$16)/1000 -> 1164.951852 | Q17: k$ | R17: 1.453392035 | S17: 0.09773982213 | T17: 0.1795961405 | V17: 221.6097792 | W17: k$ | X17: 0.27648 | Y17: =Z17*$Y$12 -> 0.03456 | Z17: 0.06 | AA17: -0.8097691515
I18: Change in OPEX | J18: 200 | K18: k$ / yr
C19: O&M: | D19: 775 | E19: k$ / yr | F19: Based on current OPEX (witout tax deduction) | I19: Equals change in COE | J19: =J18/D12*100 -> 1.274054142 | K19: cents/kWh | O19: Gross margin (28%) | P19: =(P13+P14+P15)/(1-T19)-(P13+P14+P15) -> 1745.912944 | Q19: k$ | R19: =CRF*P19/$P$24*100 -> 2.178198149 | S19: =R19/$R$10 -> 0.1464826382 | T19: 0.28 | V19: =X19*$V$24/CRF/100 -> 1436.35968 | W19: k$ | X19: =Y19*$X$10 -> 1.792 | Y19: =Y12*Z19/(1-Z19) -> 0.224 | Z19: 0.28 | AA19: =(T19-Z19)/T19 -> 0
C21: COE: | D21: =(0.08*D17+D19)/D12*100 -> 20.50997839 | E21: cents/kWh | I21: Change in OPEX | J21: 0.1 | K21: (in precent) | O21: O&M | P21: ='Install, Asm, O&M'!$G$48/1000 -> 294.9188637 | Q21: k$ / yr | R21: =P21/P24*100 -> 4.599253682 | S21: =R21/$R$10 -> 0.3092973031 | V21: =X21*$V$24/100 -> 102.59712 | W21: k$ / yr | X21: =Y21*$X$10 -> 1.6 | Y21: 0.2 | AA21: -0.6521174715
I22: Equals change in COE | J22: =J21*D19/D12*100 -> 0.4936959801 | K22: cents/kWh
S23: =T19*(S12+S21) -> 0.2389848613 | Y23: =100-20-16.128 -> 63.872
O24: AEP_net | P24: =AEP!$G$3 -> 6412.32 | Q24: MWh / yr | V24: =P24 -> 6412.32 | W24: MWh / yr | AA24: =(V24-P24)/P24 -> 0
I25: AEP increase or decrease
I26: Change in AEP | J26: 100 | K26: MWh/yr | O26: How to use this tool: | Y26: Tips:
I27: Equals change in COE | J27: =((0.08*D17+D19)/(D12+J26)*100)-((0.08*D17+D19)/D12*100) -> -0.129827081 | K27: cents/kWh | O27: 1) Set the yellow cells for the Target Breakdown | Y27: After setting the OPEX percentage or profit margin,
O28: 2) Column R gives the "target" costs for each sub-element | Y28: click here to adjust CAPEX percentage to get 100%
I29: Change in AEP | J29: 0.1 | K29: (in precent) | O29: 3) If you want to see the "Decrease required" you need to update the yellow cells under "Current Breakdown"
I30: Equals change in COE | J30: =((0.08*D17+D19)/(D12*(1+J29))*100)-((0.08*D17+D19)/D12*100) -> -1.86454349 | K30: cents/kWh
P32: =P11/350 -> 0
P33: =P12/350 -> 18.53288078

Sheet 2.4 350 FC Quick COE
C2: Quick COE calculation sheet
C3: This sheet can be used to make quick calculations of how a change will impact the COE.
C6: Assumed values: | D6: Value | E6: Unit | F6: Comments | I6: Effect of changes | O6: Finding COE Targets | P6: Updated: | Q6: 2011-10-12 | V6: Alternative 1
C8: Energy Production | I8: CAPEX increase or decrease | P8: Current breakdown | V8: Target breakdown | AA8: Decrease % Required
C9: NET Capacity Factor | D9: 0.56 | E9: percent | F9: Assumed after all losses are included | I9: Change in CAPEX | J9: 1000 | K9: k$ | P9: Value | Q9: Unit | R9: COE (cents/kWh) | S9: COE % | T9: % of CAPEX | V9: Value | W9: Unit | X9: COE (cents/kWh) | Y9: COE % | Z9: % of CAPEX | AA9: As a percentage based on current breakdown
C10: AEP_net (per rotor) | D10: =800*8760*D9/1000 -> 3924.48 | E10: MWh / yr | F10: This corresponds to approximately 65% net Capacity Factor at 800 kW | I10: Equals change in COE | J10: =J9*0.08/D12*100 -> 0.5096216569 | K10: cents/kWh | O10: Total | R10: =R12+R19+R21 -> 13.38992413 | S10: =R10/$R$10 -> 1 | X10: 8 | Y10: =Y12+Y19+Y21 -> 1
C11: Number of rotors | D11: 4 | E11: #
C12: AEP_net (C-Plane) | D12: =D10*D11 -> 15697.92 | E12: MWh / yr | O12: CAPEX (without margin) | P12: =SUM(P13:P17) -> 7395.047134 | Q12: k$ | R12: =CRF*P12/$P$24*100 -> 7.425361171 | S12: =R12/$R$10 -> 0.5545484127 | T12: =R12/$R$12 -> 1 | V12: =X12*$V$24/CRF/100 -> 4589.18784 | W12: k$ | X12: =Y12*$X$10 -> 4.608 | Y12: 0.576 | Z12: =SUM(Z13:Z17) -> 1 | AA12: =(V12-P12)/P12 -> -0.3794241258
I13: Change in CAPEX | J13: 0.1 | K13: (in precent) | O13: Platform | P13: ='BOM Cost'!$O$4/1000 -> 2445.704565 | Q13: k$ | R13: 2.455730083 | S13: 0.1834013441 | T13: 0.3307219711 | V13: 1835.675136 | W13: k$ | X13: 1.8432 | Y13: =Z13*$Y$12 -> 0.2304 | Z13: 0.4 | AA13: =(V13-P13)/P13 -> -0.249428912
C14: Capital Recovery Factor | D14: 0.08 | F14: Corresponds to a 20 year secured loan at around 4% interest rate. | I14: Equals change in COE | J14: =J13*D17*0.08/D12*100 -> 1.557301859 | K14: cents/kWh | O14: Drivetrain | P14: =(2*'BOM Cost'!$O$25/1000) -> 2043.375911 | Q14: k$ | R14: 2.05175219 | S14: 0.1532310542 | T14: 0.2763168205 | V14: 1376.756352 | W14: k$ | X14: 1.3824 | Y14: =Z14*$Y$12 -> 0.1728 | Z14: 0.3 | AA14: -0.326234422
O15: Mooring lines & attachments | P15: ='Mooring Cost'!$H$4/1000 -> 662.0951868 | Q15: k$ | R15: 0.6648092707 | S15: 0.04964996548 | T15: 0.08953224704 | V15: 458.918784 | W15: k$ | X15: 0.4608 | Y15: =Z15*$Y$12 -> 0.0576 | Z15: 0.1 | AA15: -0.3068688715
O16: Grid connect | P16: ='Grid Connection - MW Scale'!$H$3/1000 -> 1037.817447 | Q16: k$ | R16: 1.042071705 | S16: 0.07782506418 | T16: 0.140339531 | V16: 642.4862976 | W16: k$ | X16: 0.64512 | Y16: =Z16*$Y$12 -> 0.08064 | Z16: 0.14 | AA16: -0.3809255187
C17: CAPEX: | D17: 30558 | E17: k$ | F17: Based on current CAPEX | I17: OPEX increase or decrease | O17: Misc (assembly & installation) | P17: =('Install, Asm, O&M'!$H$9+'Install, Asm, O&M'!$H$16)/1000 -> 1206.054024 | Q17: k$ | R17: 1.210997923 | S17: 0.09044098468 | T17: 0.1630894303 | V17: 275.3512704 | W17: k$ | X17: 0.27648 | Y17: =Z17*$Y$12 -> 0.03456 | Z17: 0.06 | AA17: -0.7716924242
I18: Change in OPEX | J18: 200 | K18: k$ / yr
C19: O&M: | D19: 775 | E19: k$ / yr | F19: Based on current OPEX (witout tax deduction) | I19: Equals change in COE | J19: =J18/D12*100 -> 1.274054142 | K19: cents/kWh | O19: Gross margin (28%) | P19: =(P13+P14+P15)/(1-T19)-(P13+P14+P15) -> 2003.23498 | Q19: k$ | R19: =CRF*P19/$P$24*100 -> 2.011446711 | S19: =R19/$R$10 -> 0.1502209193 | T19: 0.28 | V19: =X19*$V$24/CRF/100 -> 1784.68416 | W19: k$ | X19: =Y19*$X$10 -> 1.792 | Y19: =Y12*Z19/(1-Z19) -> 0.224 | Z19: 0.28 | AA19: =(T19-Z19)/T19 -> 0
C21: COE: | D21: =(0.08*D17+D19)/D12*100 -> 20.50997839 | E21: cents/kWh | I21: Change in OPEX | J21: 0.1 | K21: (in precent) | O21: O&M | P21: ='Install, Asm, O&M'!$H$48/1000 -> 314.9582118 | Q21: k$ / yr | R21: =P21/P24*100 -> 3.953116245 | S21: =R21/$R$10 -> 0.295230668 | V21: =X21*$V$24/100 -> 127.47744 | W21: k$ / yr | X21: =Y21*$X$10 -> 1.6 | Y21: 0.2 | AA21: -0.5952560206
I22: Equals change in COE | J22: =J21*D19/D12*100 -> 0.4936959801 | K22: cents/kWh
S23: =T19*(S12+S21) -> 0.2379381426 | Y23: =100-20-16.128 -> 63.872
O24: AEP_net | P24: =AEP!$H$3 -> 7967.34 | Q24: MWh / yr | V24: =P24 -> 7967.34 | W24: MWh / yr | AA24: =(V24-P24)/P24 -> 0
I25: AEP increase or decrease
I26: Change in AEP | J26: 100 | K26: MWh/yr | O26: How to use this tool: | Y26: Tips:
I27: Equals change in COE | J27: =((0.08*D17+D19)/(D12+J26)*100)-((0.08*D17+D19)/D12*100) -> -0.129827081 | K27: cents/kWh | O27: 1) Set the yellow cells for the Target Breakdown | Y27: After setting the OPEX percentage or profit margin,
O28: 2) Column R gives the "target" costs for each sub-element | Y28: click here to adjust CAPEX percentage to get 100%
I29: Change in AEP | J29: 0.1 | K29: (in precent) | O29: 3) If you want to see the "Decrease required" you need to update the yellow cells under "Current Breakdown"
I30: Equals change in COE | J30: =((0.08*D17+D19)/(D12*(1+J29))*100)-((0.08*D17+D19)/D12*100) -> -1.86454349 | K30: cents/kWh
P33: =P12/350 -> 21.1287061

Sheet Pie Chart
